Cogmind - Beta 14 @@@ ROGUE MODE // 2024.09.17 @ 19:49:42 Player: Darby Result: Heading to fleet! Performance ------------- Evolutions (9) 4500 Regions Visited (39) 7800 Robots Destroyed (382) 1910 Value Destroyed (10910) 10910 Prototype IDs (113) 2260 Alien Tech Used (9) 1800 Bonus (17524) 17524 TOTAL SCORE: 46704 Bonus ------- Triggered Max Security 2000 High Alert Combat Kills 1500 Follower Combat Kills 3124 Entered Garrisons 200 Used RIF Installer 500 Network Hubs Disabled 200 Aligned with FarCom 300 Met Data Miner 300 Built Enhanced Grunts 300 A7 Reached Mainframe 300 Met R17 at Cetus 500 Used Core Reset Matrix 3000 Met R17 at Research 2000 Met Architect 300 Win 3000 Cogmind --------- Core Integrity 347/1600 Matter 231/300 Energy 281/350 System Corruption 1% Temperature Cool (3) Movement Flying (35) Location To Fleet Rendezvous Parts ------- > --- POWER (1) -------- (None) > --- PROPULSION (8) --- Cooled Impulse Thruster > --- UTILITY (13) ----- Advanced Coolant Injector Experimental Optical Array Experimental Signal Interpreter Experimental Terrain Scan Processor Experimental Melee Analysis Suite Experimental Melee Analysis Suite Core Analyzer Graphene Brace > --- WEAPON (4) ------- Molecular Scythe > --- INVENTORY (7) ---- Improved Fusion Compressor Stasis Canceller Experimental Utility Shielding Microwarp Drive Matter Neutralizer Improved Plasma Cutter Peak State ------------ > --- POWER ------------ Improved Fusion Compressor > --- PROPULSION ------- Cooled Nuclear Pulse Thruster Cooled Nuclear Pulse Thruster Cooled Nuclear Pulse Thruster Cooled Field Propulsion Drive Cooled Field Propulsion Drive Q-thruster Cooled Impulse Thruster Cooled Impulse Thruster > --- UTILITY ---------- Advanced Coolant Injector Large Storage Unit Machine Analyzer Experimental Optical Array Long-range Sensor Array Experimental Signal Interpreter Long-range Terrain Scanner Experimental Terrain Scan Processor Experimental Melee Analysis Suite Experimental Melee Analysis Suite Core Analyzer Advanced Reaction Control System Graphene Brace > --- WEAPON ----------- Molecular Scythe Longsword +1 Sigix Broadsword > --- INVENTORY -------- Improved Fusion Compressor Stasis Canceller Experimental Utility Shielding Microwarp Drive Matter Neutralizer Advanced Datajack Improved Plasma Cutter [Rating: 203] Favorites ----------- Power Light Ion Engine Engine Light Ion Engine Power Core Micro Nuclear Core Reactor Particle Reactor Propulsion Light Treads Treads Light Treads Leg Carbon-fiber Leg Wheel Compact Wheel Hover Unit Combat Antigrav System Flight Unit Cooled Nuclear Pulse Thruster Utility Structural Scanner Device Structural Scanner Storage Huge Storage Unit Processor Advanced Targeting Computer Hackware Advanced Hacking Suite Protection Light Armor Plating Weapon Maul Energy Gun Improved EM Shotgun Energy Cannon Heavy Ion Cannon Ballistic Gun Advanced KE Penetrator Ballistic Cannon Improved Light Cannon Launcher Rocket Launcher Special Weapon Plasma Cutter Impact Weapon Maul Slashing Weapon Power Sword Piercing Weapon Heavy Pick Special Melee Weapon Advanced Datajack Build | -11 -10 -10 -9 -9 -9 -8 -8 -8 -7 -7 -7 -7 -7 -7 -6 -6 -6 -6 -6 -6 -6 -5 -5 -5 -5 -5 -5 -5 -5 -4 -4 -4 -3 -2 -2 -2 -1 -1 -1 ------- Run | Yrd Mat Min Mat Min Exi Min Mat Gar Fac Was Fac Low Low Dat Pro Fac Was Fac Low Low Zio Pro Fac Was Fac Ext Cet Arc Hub Fac Was Fac Res Res Qua Sec Acc Com Ac0 Slots Evolved 18 | . . . 2 . . . 2 . 2 . . . . . . 2 . . . . . . 2 . . . . . . 2 . . 2 2 . . 2 . . Power . | . . . . . . . . . . . . . . . . . . . . . . . . . . . . . . . . . . . . . . . . Propulsion 6 | . . . . . . . 2 . 2 . . . . . . . . . . . . . . . . . . . . . . . 1 1 . . . . . Utility 10 | . . . 2 . . . . . . . . . . . . 2 . . . . . . 2 . . . . . . 2 . . 1 1 . . . . . Weapon 2 | . . . . . . . . . . . . . . . . . . . . . . . . . . . . . . . . . . . . . 2 . . Parts Attached 887 | 7 45 . 52 6 4 10 38 66 44 21 11 12 8 . 10 75 22 83 7 8 7 14 71 2 13 43 6 16 9 38 7 29 72 9 6 3 5 7 1 Power 61 | 1 3 . 5 . . . 2 5 . . 2 1 . . 2 3 . 4 . . . 1 6 . . 3 . 1 . 6 1 4 8 1 . . . 2 . Engine 19 | 1 3 . 5 . . . 1 3 . . 2 . . . . 1 . 1 . . . . . . . 2 . . . . . . . . . . . . . Core 34 | . . . . . . . 1 2 . . . 1 . . 2 2 . 3 . . . 1 6 . . 1 . . . 4 1 3 4 1 . . . 2 . Reactor 8 | . . . . . . . . . . . . . . . . . . . . . . . . . . . . 1 . 2 . 1 4 . . . . . . Propulsion 160 | 2 7 . 12 . . . 12 9 12 . 4 . 1 . 3 14 7 17 . . . 1 10 2 3 18 1 . . 8 . 3 9 4 . . 1 . . Treads 42 | 1 3 . 7 . . . 9 9 1 . 1 . . . . . . 1 . . . . . . . 9 1 . . . . . . . . . . . . Leg 2 | . . . . . . . . . . . . . . . . 1 . . . . . . . . . 1 . . . . . . . . . . . . . Wheel 13 | 1 4 . 4 . . . 2 . . . 1 . . . . . . . . . . . . . . 1 . . . . . . . . . . . . . Hover 12 | . . . . . . . . . 1 . . . . . 1 . 3 2 . . . . . . 1 . . . . 1 . . 2 1 . . . . . Flight 91 | . . . 1 . . . 1 . 10 . 2 . 1 . 2 13 4 14 . . . 1 10 2 2 7 . . . 7 . 3 7 3 . . 1 . . Utility 380 | 2 9 . 10 3 2 2 8 16 17 3 1 7 3 . 5 39 15 48 2 5 3 8 38 . 8 15 2 7 3 19 4 16 45 3 5 3 2 2 . Device 250 | 1 3 . 3 3 1 2 5 7 11 2 1 6 3 . 3 26 12 36 2 4 3 6 32 . 8 7 . 2 2 15 4 10 20 2 2 2 2 2 . Storage 15 | 1 3 . . . 1 . . . 1 . . . . . . 1 . . . . . . 3 . . 1 . . . 3 . . 1 . . . . . . Processor 36 | . 1 . 2 . . . . 1 3 . . . . . . 3 1 7 . 1 . 1 1 . . 1 . . . 1 . 2 9 . 1 1 . . . Hackware 21 | . . . . . . . 2 6 2 1 . 1 . . 1 3 . 1 . . . 1 1 . . . . . 1 . . . . . 1 . . . . Protection 58 | . 2 . 5 . . . 1 2 . . . . . . 1 6 2 4 . . . . 1 . . 6 2 5 . . . 4 15 1 1 . . . . Artifact . | . . . . . . . . . . . . . . . . . . . . . . . . . . . . . . . . . . . . . . . . Weapon 286 | 2 26 . 25 3 2 8 16 36 15 18 4 4 4 . . 19 . 14 5 3 4 4 17 . 2 7 3 8 6 5 2 6 10 1 1 . 2 3 1 Energy Gun 36 | . 9 . 12 2 . 3 4 . . 1 . . . . . . . . . . . . . . . . 1 3 1 . . . . . . . . . . Energy Cannon 64 | . . . 2 . . . 7 17 1 4 . . . . . 9 . 5 1 1 . 2 3 . 1 1 . . 3 2 1 2 1 1 . . . . . Ballistic Gun 22 | 2 4 . 6 . 1 2 . . 2 2 . 1 . . . . . . . . . . . . . . 1 1 . . . . . . . . . . . Ballistic Cannon 6 | . 1 . 2 . . . . . 1 1 . . . . . . . . . . . . . . . 1 . . . . . . . . . . . . . Launcher 18 | . . . 2 . . 2 3 4 1 . . . . . . 1 . . . . 2 . . . . 1 1 . . . . . . . . . . 1 . Special Weapon 49 | . 1 . . . . . . 8 8 9 2 2 . . . 2 . 2 2 1 2 . 4 . . . . 3 1 1 . . . . 1 . . . . Impact Weapon 22 | . 9 . . 1 . 1 2 7 . . . . 1 . . 1 . . . . . . . . . . . . . . . . . . . . . . . Slashing Weapon 41 | . . . . . . . . . 1 . 1 . 1 . . . . 4 2 1 . 2 9 . 1 3 . . 1 2 1 1 7 . . . 2 2 . Piercing Weapon 16 | . . . . . . . . . . 1 . . 2 . . 6 . 3 . . . . 1 . . 1 . . . . . . 2 . . . . . . Special Melee Weapon 12 | . 2 . 1 . 1 . . . 1 . 1 1 . . . . . . . . . . . . . . . 1 . . . 3 . . . . . . 1 Unidentified Prototypes 23 | . . . 5 . . . 3 . . . 1 . . . . . 1 . 1 . 1 . . . . . 4 . . . . . . . . 2 1 4 . Corrupted Parts 2 | . . . . . . 1 . . . . . . . . . . . . . . . . . . . . . . 1 . . . . . . . . . . System Corruption 7 | . . . . . . 2 . . . . . . . . . . . . . . . . . . . . . . 5 . . . . . . . . . . Parts Lost 49 | . 2 . 5 4 . 2 5 4 . . 2 1 . . . . . . . . . . 2 . . . . . 5 . 1 . . . . 1 . . 15 Power 6 | . . . 1 . . . . 2 . . . 1 . . . . . . . . . . . . . . . . 1 . . . . . . . . . 1 Propulsion 21 | . 1 . 1 . . . 5 1 . . 2 . . . . . . . . . . . 1 . . . . . 2 . . . . . . 1 . . 7 Utility 11 | . . . 1 2 . 1 . 1 . . . . . . . . . . . . . . 1 . . . . . 1 . . . . . . . . . 4 Weapon 11 | . 1 . 2 2 . 1 . . . . . . . . . . . . . . . . . . . . . . 1 . 1 . . . . . . . 3 Highest Loss Streak 15 | . 2 . 2 2 . 2 1 4 . . 2 1 . . . . . . . . . . 2 . . . . . 5 . 1 . . . . 1 . . 15 To Critical Strikes . | . . . . . . . . . . . . . . . . . . . . . . . . . . . . . . . . . . . . . . . . Average Slot Usage (%) 90 | . 100 100 99 97 99 99 93 90 99 100 80 91 97 100 100 95 92 92 91 92 88 93 99 100 100 95 84 87 87 97 96 95 99 100 98 95 83 87 92 Engine 8 | . 14 14 11 11 11 11 6 8 7 7 7 . . . . . . . . . . . . . . . 5 . . . . . . . . . . . . Treads 24 | . 17 14 11 11 11 11 27 26 . . . . . . . . . . . . . . . . . 4 20 16 15 . . . . . . . . . . Flight 2 | . . . . . . . . . 45 46 36 46 46 46 45 39 40 39 39 37 37 37 32 33 33 27 5 5 4 29 30 30 30 32 33 33 28 30 28 Device 8 | . 4 . 11 11 22 21 9 8 8 1 . 7 11 15 9 9 5 8 12 12 7 12 11 11 11 2 . . 7 12 13 9 12 16 14 10 9 11 18 Storage 8 | . 14 14 11 11 11 11 9 9 7 7 7 7 7 7 7 6 6 6 6 6 6 6 5 5 5 5 5 5 5 5 5 5 4 4 4 4 3 3 3 Processor 9 | . 7 . 11 11 11 11 9 9 6 7 7 7 7 7 7 6 13 13 12 17 18 18 22 22 22 22 22 22 22 24 25 25 22 20 20 28 26 26 26 Protection 8 | . 2 14 11 9 . . . 8 . . . . . . . 1 . 1 . . . . . . . 4 10 10 . . . 3 3 4 5 5 . . . Special Weapon 7 | . . . . . . . . 8 5 5 . 4 7 7 7 3 . . . . . . 4 5 5 4 . . . 4 3 . . . 3 4 1 . . Impact Weapon 7 | . 6 14 . 4 . . 1 8 7 7 . . . . . . . . . . . . . . . . . . . . . . . . . . . . . Peak Build Rating 203 | 8 14 14 23 22 21 27 33 58 48 47 49 47 51 47 49 64 67 74 71 74 79 78 98 98 102 104 121 125 118 110 113 116 150 163 172 180 201 203 203 Average Rating 40 | 5 10 14 19 21 20 24 28 37 41 42 37 44 46 47 48 58 57 64 66 71 77 71 89 97 97 98 96 123 114 104 105 106 137 162 161 172 175 194 189 On Entrance 76 | . 8 14 14 22 20 21 23 33 37 42 42 49 44 47 47 49 57 57 65 67 72 71 73 97 97 97 101 121 125 74 110 98 116 150 160 172 162 196 203 Naked Turns . | . . . . . . . . . . . . . . . . . . . . . . . . . . . . . . . . . . . . . . . . Heaviest Build 123 | 15 93 90 101 98 95 97 108 123 30 30 29 29 33 33 33 35 30 41 33 31 41 32 36 36 36 121 120 123 115 38 38 40 43 44 51 51 54 54 53 Greatest Support 177 | 16 40 10 40 16 16 16 80 130 30 30 32 32 34 34 34 35 35 37 33 33 33 35 39 38 38 160 177 177 177 38 38 38 46 52 67 67 54 54 69 Greatest Overweight (x) 30 | . 9 8 9 6 5 6 8 30 . . 1 . . . . 5 1 1 . 10 1 . . . . 3 . . . . . 1 . . . . . . . Average Overweight (x) 5 | . 2 8 6 5 5 5 2 23 . . . . . . . . . . . . . . . . . . . . . . . . . . . . . . . Largest Inventory Capacity 25 | 8 25 25 25 25 25 25 25 25 25 15 15 15 15 15 15 15 15 15 15 15 15 15 25 15 15 25 25 25 25 25 15 15 15 15 15 17 17 17 17 Average Capacity 24 | 7 19 25 25 25 25 25 25 25 15 15 15 15 15 15 15 15 15 15 15 15 15 15 15 15 15 17 25 25 25 15 15 15 15 15 15 16 17 17 16 Most Carried 25 | 8 25 25 25 25 24 25 25 25 24 15 15 15 15 15 15 15 15 15 15 15 15 15 15 15 15 25 25 25 25 25 15 15 15 14 15 17 17 17 9 Average Carried 24 | 5 18 25 24 24 23 24 24 24 15 14 14 13 14 15 14 14 14 14 14 15 14 14 14 15 15 16 24 25 24 14 14 14 14 13 14 16 15 13 8 Final Capacity 25 | 8 25 25 25 25 25 25 25 25 15 15 15 15 15 15 15 15 15 15 15 15 15 15 15 15 15 25 25 25 25 15 15 15 15 15 15 17 17 17 7 Final Carried 25 | 8 25 25 25 24 24 25 25 25 15 15 13 15 15 15 15 15 15 15 15 15 15 15 15 15 15 25 25 25 24 15 14 15 15 14 15 17 14 15 7 Class Distribution -------------------- 86% | Bothacker-Mutant 4% | Trapper-Mutant Dominant Class ---------------- Mutant | -10/Materials Trapper-Mutant | -10/Mines Trapper-Mutant | -9/Materials Trapper-Mutant | -9/Mines Trapper-Mutant | -9/Exiles Trapper-Mutant | -8/Mines Trapper-Mutant | -8/Materials Bothacker-Mutant | -8/Garrison Bothacker-Mutant | -7/Factory Bothacker-Mutant | -7/Waste Bothacker-Mutant | -7/Factory Bothacker-Sprinter | -7/Lower Caves Bothacker-Scout | -7/Lower Caves Bothacker-Assassin | -7/Data Miner Bothacker-Sprinter | -6/Proximity Caves Scout | -6/Factory Assassin | -6/Waste Ninja | -6/Factory Scout | -6/Lower Caves Scout | -6/Lower Caves Mutant | -6/Zion Scout | -5/Proximity Caves Hacker-Scout | -5/Factory Hacker-Scout | -5/Waste Hacker-Scout | -5/Factory Commander-Assassin | -5/Extension Commander-Mutant | -5/Cetus Scavenger-Skirmisher | -5/Archives Hacker-Skirmisher | -5/Hub_04(d) Hacker-Scout | -4/Factory Hacker-Scout | -4/Waste Hacker-Scout | -4/Factory Hacker-Scout | -3/Research Hacker-Assassin | -2/Research Hacker-Scout | -2/Quarantine Scout | -2/Section 7 Scout | -1/Access Scout | -1/Command Alien-Scout | -1/Access_0 Resources | -11 -10 -10 -9 -9 -9 -8 -8 -8 -7 -7 -7 -7 -7 -7 -6 -6 -6 -6 -6 -6 -6 -5 -5 -5 -5 -5 -5 -5 -5 -4 -4 -4 -3 -2 -2 -2 -1 -1 -1 ----------- Run | Yrd Mat Min Mat Min Exi Min Mat Gar Fac Was Fac Low Low Dat Pro Fac Was Fac Low Low Zio Pro Fac Was Fac Ext Cet Arc Hub Fac Was Fac Res Res Qua Sec Acc Com Ac0 Matter Collected 14739 | 360 986 58 991 40 10 166 521 1195 505 94 134 332 85 . 115 535 505 880 70 67 51 224 622 . 204 853 165 415 221 345 . 1037 1887 100 . 149 495 322 . Remotely . | . . . . . . . . . . . . . . . . . . . . . . . . . . . . . . . . . . . . . . . . Salvage Created 16037 | 234 1231 32 2847 398 . 332 1354 1033 603 . 122 . 210 . 7 480 . 709 24 . . 55 918 . 204 85 2 310 129 345 . 1037 1839 181 . 149 648 519 . Parts 884 | 19 95 1 179 28 . 18 80 63 15 . 12 . 2 . 1 42 . 41 2 . . 5 33 . 7 10 1 32 7 12 . 49 83 12 . 3 26 6 . Haulers Intercepted 31 | . 2 . 6 . . . 5 . 2 . 1 . . . . . . 1 . . . . 4 . . . . . . . . 1 9 . . . . . . Recyclers Shooed 11 | . 1 . 1 . . . 2 . 1 . . . . . . . . . . . . . . . 2 . . . . . . . 1 . . . 3 . . Parts Field Recycled . | . . . . . . . . . . . . . . . . . . . . . . . . . . . . . . . . . . . . . . . . Retrieved Matter . | . . . . . . . . . . . . . . . . . . . . . . . . . . . . . . . . . . . . . . . . Parts Self-Destructed 17 | . . . . . . . . . . . . 10 1 . . . . . 2 . . 4 . . . . . . . . . . . . . . . . . Prevented . | . . . . . . . . . . . . . . . . . . . . . . . . . . . . . . . . . . . . . . . . Kills | -11 -10 -10 -9 -9 -9 -8 -8 -8 -7 -7 -7 -7 -7 -7 -6 -6 -6 -6 -6 -6 -6 -5 -5 -5 -5 -5 -5 -5 -5 -4 -4 -4 -3 -2 -2 -2 -1 -1 -1 ------- Run | Yrd Mat Min Mat Min Exi Min Mat Gar Fac Was Fac Low Low Dat Pro Fac Was Fac Low Low Zio Pro Fac Was Fac Ext Cet Arc Hub Fac Was Fac Res Res Qua Sec Acc Com Ac0 Combat Hostiles Destroyed 154 | . 19 . 52 10 . 7 23 29 1 . . . . . 1 5 . 3 . . . 2 . . . . . . 2 . . . . . . . . . . Melee 6 | . . . . . . . . . . . . . . . 1 2 . 1 . . . 2 . . . . . . . . . . . . . . . . . Guns 69 | . 17 . 36 8 . 3 4 . . . . . . . . . . . . . . . . . . . . . 1 . . . . . . . . . . Cannons 36 | . . . 5 . . . 12 18 . . . . . . . . . . . . . . . . . . . . 1 . . . . . . . . . . AOE 39 | . 1 . 11 2 . 4 6 10 . . . . . . . 3 . 2 . . . . . . . . . . . . . . . . . . . . . Classes Destroyed 18 | 3 6 . 3 1 . 1 . 2 . . . . . . 1 . . . 1 . . . . . . . . . . . . . . . . . . . . Worker 54 | 2 13 . 6 . . 1 . . . . . . . . . 1 . 2 . . . . 2 . . . . . . 1 . 13 9 1 . . 3 . . Builder 30 | . 6 . 1 2 . . 1 . 6 . 3 . . . . 2 . 3 . . . . . . . 1 . . . . . 2 2 1 . . . . . Tunneler 17 | 5 1 1 1 . . 1 . . . . . . . . . 2 . . . . . . . . . . . . . . . 2 3 . . . 1 . . Hauler 31 | . 2 . 6 . . . 5 . 2 . 1 . . . . . . 1 . . . . 4 . . . . . . . . 1 9 . . . . . . Recycler 31 | 1 1 . 2 . . . 3 . 4 . . . . . . . . 2 . . . . 2 . 1 . . . . 2 . 4 4 . . 1 4 . . Minesweeper 2 | . . . . . . . . . . . . . . . . . . . 1 . . 1 . . . . . . . . . . . . . . . . . Mechanic 6 | . . . 2 . . . . . . . . . . . . 1 . 1 . . . . . . . . . . . . . 1 1 . . . . . . Operator 23 | . 3 . 5 . . . . . . . . . . . . 1 . . . . . . 2 . . 1 . 9 . . . . . . . . 2 . . Drone 3 | . . . . . . . . . . . . . . . 1 . . . . . . 2 . . . . . . . . . . . . . . . . . Watcher 44 | . 3 . 5 . . . 5 . 2 . 1 . . . . 3 . 5 . . . . 5 . 3 1 1 . . 2 . 1 4 3 . . . . . Swarmer 32 | . 7 . 6 4 . . 6 9 . . . . . . . . . . . . . . . . . . . . . . . . . . . . . . . Grunt 77 | . 12 . 35 5 . 6 8 10 . . . . . . . . . . . . . . . . . . . . 1 . . . . . . . . . . Brawler 3 | . . . 2 . . . 1 . . . . . . . . . . . . . . . . . . . . . . . . . . . . . . . . Sentry 23 | . . . 9 . . . 7 4 1 . . . . . . . . 1 . . . . . . . . . . 1 . . . . . . . . . . Demolisher 1 | . . . . 1 . . . . . . . . . . . . . . . . . . . . . . . . . . . . . . . . . . . Hunter 4 | . . . . . . 1 1 . . . . . . . . 2 . . . . . . . . . . . . . . . . . . . . . . . Programmer 10 | . . . . . . . . 5 . . . . . . . 3 . 2 . . . . . . . . . . . . . . . . . . . . . Behemoth 1 | . . . . . . . . 1 . . . . . . . . . . . . . . . . . . . . . . . . . . . . . . . Decomposer 2 | . . . . . . . . . . . . . 2 . . . . . . . . . . . . . . . . . . . . . . . . . . Best Kill Streak 11 | 6 8 1 6 5 . 3 8 4 3 . 2 . . . 1 4 . 3 1 . . 2 3 . 2 1 1 4 1 2 . 7 11 2 . 1 4 . . Combat Bots Only 7 | . 4 . 5 3 . 3 7 4 1 . . . . . 1 2 . 1 . . . 2 . . . . . . 1 . . . . . . . . . . Max Kills in Single Turn 3 | 1 2 1 3 2 . 2 2 3 1 . 1 . 1 . 1 2 . 3 1 . . 1 1 . 1 1 1 1 1 1 . 1 1 1 . 1 1 . . Gunslinging . | . . . . . . . . . . . . . . . . . . . . . . . . . . . . . . . . . . . . . . . . Exploded 3 | . 1 . 3 2 . 2 2 3 . . . . . . . 2 . 1 . . . . . . . . . . . . . . . . . . . . . Melee 1 | . . . . . . . . . . . . . . . 1 1 . 1 . . . 1 . . . . . . . . . . . . . . . . . Uniques/NPCs Destroyed . | . . . . . . . . . . . . . . . . . . . . . . . . . . . . . . . . . . . . . . . . Combat | -11 -10 -10 -9 -9 -9 -8 -8 -8 -7 -7 -7 -7 -7 -7 -6 -6 -6 -6 -6 -6 -6 -5 -5 -5 -5 -5 -5 -5 -5 -4 -4 -4 -3 -2 -2 -2 -1 -1 -1 -------- Run | Yrd Mat Min Mat Min Exi Min Mat Gar Fac Was Fac Low Low Dat Pro Fac Was Fac Low Low Zio Pro Fac Was Fac Ext Cet Arc Hub Fac Was Fac Res Res Qua Sec Acc Com Ac0 Hostile Shots Fired 875 | . 76 . 130 29 . 26 96 106 . . . 16 . . . 32 . 28 . . . . 8 . . 1 13 . 99 . 1 2 . . 2 45 . 3 162 Missed 304 | . 21 . 42 4 . 12 25 27 . . . 4 . . . 18 . 14 . . . . 4 . . 1 4 . 24 . . 1 . . . 20 . 1 82 Damage Taken 11299 | . 563 . 1191 351 . 206 1021 1439 . . 156 191 . . . 207 . 203 . . . . 81 . . 46 190 . 2177 . 41 23 . . . 644 . 518 2051 Core 2021 | . 70 . 148 6 . 23 115 60 . . 42 49 . . . 74 . 18 . . . . 19 . . 24 . . 260 . 41 23 . . . 60 . 293 696 Absorbed by Shields 123 | . . . 8 35 . 43 . . . . . . . . . . . . . . . . . . . . 37 . . . . . . . . . . . . Reduced by Siege Mode 4 | . . . . . . . . 4 . . . . . . . . . . . . . . . . . . . . . . . . . . . . . . . Regen/Repaired (Parts) 705 | . 17 . 26 . . . . . . . . . . . . 69 . 134 . . . . . . . . 47 . . . . . 32 . . . . 225 155 Core Remaining (%) 77 | 100 . 72 . . . 55 . 68 . . . . . . 87 . . . . . . 89 . . . . . . 69 . . 94 100 . . 95 . . 21 Volleys Fired 819 | 15 145 . 135 19 . 28 87 109 17 24 3 7 1 1 2 20 . 12 4 8 4 4 9 . 4 27 3 44 18 11 1 2 . 4 17 18 15 1 . Largest 2 | 2 2 . 2 2 . 2 2 2 1 1 1 1 1 1 1 1 . 1 1 1 1 1 1 . 1 1 1 2 2 1 1 1 . 1 1 1 1 1 . Hottest 155 | 40 100 . 107 90 . 92 150 155 5 90 5 5 5 5 5 90 . 90 90 90 5 90 90 . 90 7 46 115 116 105 105 105 . 105 105 105 105 . . Shots Fired 1273 | 30 276 . 242 30 . 44 161 170 17 24 3 7 1 1 2 20 . 12 4 8 4 4 9 . 4 27 3 70 31 11 1 2 . 4 17 18 15 1 . Gun 739 | 30 275 . 222 30 . 40 55 . . . . . . . . . . . . . . . . . . . . 69 18 . . . . . . . . . . Cannon 381 | . . . 15 . . . 99 146 . 11 . . . . . 12 . 9 2 8 . 4 5 . 1 . . . 11 1 1 2 . 4 17 18 15 . . Launcher 32 | . . . 5 . . 4 7 12 . . . . . . . . . . . . . . . . . . 3 . . . . . . . . . . 1 . Special 121 | . 1 . . . . . . 12 17 13 3 7 1 1 2 8 . 3 2 . 4 . 4 . 3 27 . 1 2 10 . . . . . . . . . Kinetic 367 | 30 116 . 138 . . 26 . . . . . . . . . . . . . . . . . . . . . 43 14 . . . . . . . . . . Thermal 544 | . 94 . 7 . . 2 154 146 . 11 . . . . . 12 . 9 2 8 . 4 5 . 1 . . 26 4 1 1 2 . 4 17 18 15 1 . Explosive 31 | . . . 5 . . 4 7 12 . . . . . . . . . . . . . . . . . . 3 . . . . . . . . . . . . Electromagnetic 211 | . 66 . 92 30 . 12 . . . . . . . . . . . . . . . . . . . . . . 11 . . . . . . . . . . Robot Hit Streak 22 | 4 13 . 22 11 . 13 17 9 11 7 1 3 3 4 6 8 . 1 3 . 7 . 2 . 2 18 4 6 10 4 . . . . . 4 3 . . Robot Miss Streak 5 | 4 5 . 4 4 . 3 4 3 1 1 2 3 . . . 1 . 1 . . . . 2 . 1 2 . 4 3 2 . . . . . 2 2 . . Penetration Max 1 | . . . . . . . . . . . . . . . . . . . . . . . . . . . . 1 1 . . . . . . . . . . Secondary Targets 1 | . . . 1 . . . . . . . . . . . . . . . . . . . . . . . . . . . . . . . . . . . . Max Gunslinging Chain 1 | . . . 1 . . . . . . . . . . . . . . . . . . . . . . . . . . . . . . . . . . . . Shots Hit Robots 1004 | 17 136 1 184 25 11 32 106 78 32 14 7 4 7 1 3 22 . 27 3 . 4 4 34 . 14 27 3 37 18 18 . 35 43 8 . 5 19 15 10 Core Hits 496 | 9 61 . 120 18 . 25 50 38 3 . 3 . 1 . 1 38 . 12 1 . . 2 12 . 2 3 7 19 5 4 . 12 21 4 . 4 9 7 5 Critical Kills 5 | . 2 . 1 . . . . 1 . . . . . . . . . . . . . . . . . . . 1 . . . . . . . . . . . Critical Parts Destroyed 16 | . 3 . . . . . . . 5 . . . . . . . . . . . . . . . . . . 5 3 . . . . . . . . . . Critical Strikes 45 | . 16 . 1 . . . 3 1 5 . . . . . . 1 . 1 . . . . 4 . . 1 . 6 3 . . 1 2 . . . . . . Burn 13 | . 10 . . . . . 3 . . . . . . . . . . . . . . . . . . . . . . . . . . . . . . . . Meltdown 1 | . . . . . . . . 1 . . . . . . . . . . . . . . . . . . . . . . . . . . . . . . . Destroy 12 | . 2 . 1 . . . . . . . . . . . . . . . . . . . . . . . . 6 3 . . . . . . . . . . Corrupt 1 | . 1 . . . . . . . . . . . . . . . . . . . . . . . . . . . . . . . . . . . . . . Smash 8 | . 3 . . . . . . . 5 . . . . . . . . . . . . . . . . . . . . . . . . . . . . . . Sever 8 | . . . . . . . . . . . . . . . . . . . . . . . 4 . . 1 . . . . . 1 2 . . . . . . Impale 2 | . . . . . . . . . . . . . . . . 1 . 1 . . . . . . . . . . . . . . . . . . . . . Melee Attacks 633 | . 29 2 1 1 11 1 5 12 25 . 8 . 9 . 5 78 . 80 10 3 . 10 69 . 33 8 . . 3 24 1 57 69 25 . . 15 27 12 Impact 71 | . 28 2 . 1 . 1 5 12 22 . . . . . . . . . . . . . . . . . . . . . . . . . . . . . . Slashing 400 | . . . . . . . . . 3 . 8 . 1 . . . . 28 10 3 . 10 69 . 33 8 . . 3 24 1 55 67 25 . . 15 27 10 Piercing 143 | . . . . . . . . . . . . . 8 . 5 78 . 52 . . . . . . . . . . . . . . . . . . . . . Sneak Attacks 135 | . 6 1 1 . 11 . 1 1 13 . 4 . 2 . . 5 . 8 1 . . 1 9 . 1 2 . . . 6 . 25 30 2 . . 5 . . Combat Hostiles 5 | . . . 1 . . . . 1 1 . . . . . . . . 1 . . . . . . . . . . . 1 . . . . . . . . . Follow-up Attacks 6 | . . . . . . . . . . . . . . . . . . . . . . . . . . . . . . . . . . . . . . 5 1 Damage Inflicted 43373 | 199 2512 54 3922 608 . 766 3035 2778 1310 105 506 . 481 . 59 1737 . 2331 84 . . 239 1966 . 565 325 547 1087 499 754 . 2498 4122 657 . 251 1504 7480 392 Guns 7512 | 199 1723 . 2610 406 . 392 758 . . . . . . . . . . . . . . . . . . . . 1087 337 . . . . . . . . . . Cannons 4640 | . . . 205 . . . 1492 2120 . 105 . . . . . . . . . . . . . . . . . . 143 . . . . . . 251 324 . . Explosions 11326 | . 540 . 1105 202 . 374 720 580 . . . . . . . 785 . 915 . . . . . . . . 547 . . . . . . . . . . 5558 . Melee 19854 | . 246 54 . . . . 48 78 1310 . 506 . 481 . 59 952 . 1416 84 . . 239 1966 . 565 325 . . . 754 . 2498 4122 657 . . 1180 1922 392 Ramming 41 | . 3 . 2 . . . 17 . . . . . . . . . . . . . . . . . . . . . 19 . . . . . . . . . . Kinetic 3558 | 199 632 . 1576 . . 147 . . . . . . . . . . . . . . . . . . . . . 767 237 . . . . . . . . . . Thermal 13450 | . 945 . 398 202 . 65 2250 2120 . 105 . . . . . . . 812 . . . . . . . . . 320 100 . . . . . . 251 324 5558 . Explosive 3555 | . . . 809 . . 328 720 580 . . . . . . . 468 . 103 . . . . . . . . 547 . . . . . . . . . . . . Electromagnetic 2915 | . 686 . 1137 406 . 226 . . . . . . . . . 317 . . . . . . . . . . . . 143 . . . . . . . . . . Impact 1435 | . 246 54 . . . . 48 78 1009 . . . . . . . . . . . . . . . . . . . . . . . . . . . . . . Slashing 16316 | . . . . . . . . . 301 . 506 . 63 . . . . 742 84 . . 239 1966 . 565 325 . . . 754 . 2498 4122 657 . . 1180 1922 392 Piercing 2103 | . . . . . . . . . . . . . 418 . 59 952 . 674 . . . . . . . . . . . . . . . . . . . . . Highest Corruption 30 | . 4 4 . . . 2 4 4 . . . . . . . 2 2 2 2 2 2 . . 9 9 9 9 9 30 . 8 8 . . . 1 . . 1 Average Corruption 1 | . 2 4 . . . 2 3 1 . . . . . . . 1 2 2 2 2 2 . . 9 9 9 9 8 7 . 8 8 . . . 1 . . 1 Corruption Purged 12 | . . . . . . . . 6 . . . . . . . . . . . . . . . . . . . 6 . . . . . . . . . . . Corruption Blocked . | . . . . . . . . . . . . . . . . . . . . . . . . . . . . . . . . . . . . . . . . Effects 1367 | . 37 2 . . . . 50 1052 . . . . . . . 13 2 19 3 5 1 . . . 22 63 15 38 22 . . 22 . . . 1 . . . Message Errors 410 | . 9 1 . . . . 11 339 . . . . . . . 3 . 4 2 2 1 . . . 5 15 3 4 4 . . 7 . . . . . . . Matter Fused 134 | . 11 . . . . . 12 46 . . . . . . . 2 2 5 . 2 . . . . 10 17 3 14 4 . . 6 . . . . . . . Heat Flow Errors 230 | . 4 . . . . . 6 190 . . . . . . . 1 . 1 1 1 . . . . 3 8 6 5 2 . . 2 . . . . . . . Energy Discharges 217 | . 5 . . . . . 10 176 . . . . . . . 3 . 1 . . . . . . 1 7 1 5 3 . . 5 . . . . . . . Parts Rejected 6 | . . . . . . . 1 . . . . . . . . . . 1 . . . . . . . 3 1 . . . . . . . . . . . . Parts Fused 15 | . 1 . . . . . 1 10 . . . . . . . . . . . . . . . . . 1 . 2 . . . . . . . . . . . Data Loss (minor) 203 | . 3 1 . . . . 4 170 . . . . . . . 2 . 4 . . . . . . 2 10 1 2 2 . . 1 . . . 1 . . . Data Loss (major) 105 | . 1 . . . . . 1 93 . . . . . . . 1 . 1 . . . . . . 1 2 . 2 3 . . . . . . . . . . Misfires 9 | . 2 . . . . . 3 3 . . . . . . . . . . . . . . . . . . . . 1 . . . . . . . . . . Alerts 30 | . . . . . . . 1 24 . . . . . . . 1 . 2 . . . . . . . . . 1 . . . 1 . . . . . . . Misdirections 1 | . . . . . . . . . . . . . . . . . . . . . . . . . . . . . 1 . . . . . . . . . . Weapon Failures 7 | . 1 . . . . . . 1 . . . . . . . . . . . . . . . . . . . 3 2 . . . . . . . . . . Overload Shots . | . . . . . . . . . . . . . . . . . . . . . . . . . . . . . . . . . . . . . . . . Overflow Damage 6212 | . 149 14 75 15 . . 107 62 752 . 163 . 304 . . 228 . 513 . . . 37 217 . 142 70 25 . . 236 . 868 980 191 . 6 410 648 . Projectiles 153 | . . . . . . . 69 46 . . . . . . . . . . . . . . . . . . . . . . . . . . . 6 32 . . Explosions 925 | . 18 . 75 15 . . 38 16 . . . . . . . . . 267 . . . . . . . . 25 . . . . . . . . . . 471 . Melee 5134 | . 131 14 . . . . . . 752 . 163 . 304 . . 228 . 246 . . . 37 217 . 142 70 . . . 236 . 868 980 191 . . 378 177 . Knockbacks 9 | . . 1 . . . . 1 1 6 . . . . . . . . . . . . . . . . . . . . . . . . . . . . . . Impact 8 | . . 1 . . . . 1 1 5 . . . . . . . . . . . . . . . . . . . . . . . . . . . . . . Kinetic . | . . . . . . . . . . . . . . . . . . . . . . . . . . . . . . . . . . . . . . . . Secondary 1 | . . . . . . . . . 1 . . . . . . . . . . . . . . . . . . . . . . . . . . . . . . Self-Inflicted Damage 160 | . 25 . 97 . . . 36 2 . . . . . . . . . . . . . . . . . . . . . . . . . . . . . . . Shots 7 | . 1 . 3 . . . 2 1 . . . . . . . . . . . . . . . . . . . . . . . . . . . . . . . Rammed 7 | . 2 . 1 . . . 1 . . . . . . . . . . . . . . . . . . . . . 3 . . . . . . . . . . Targets Rammed 7 | . 2 . 1 . . . 1 . . . . . . . . . . . . . . . . . . . . . 3 . . . . . . . . . . Kicked . | . . . . . . . . . . . . . . . . . . . . . . . . . . . . . . . . . . . . . . . . Crushed . | . . . . . . . . . . . . . . . . . . . . . . . . . . . . . . . . . . . . . . . . Highest Temperature 471 | . 392 . 234 180 . 40 390 471 53 132 244 312 259 89 179 219 . 96 110 240 . 80 257 2 261 252 270 204 264 34 52 406 306 187 131 198 292 181 318 Average Temperature 74 | . 59 . 45 53 . 16 97 105 9 29 104 92 77 42 58 60 . 13 23 129 . 44 52 2 45 78 106 59 62 5 11 73 66 39 44 93 103 87 123 Received Heat Transfer 1840 | . 192 . 514 57 . 87 270 168 . . . 18 . . . . . 48 . . . . 27 . . . 9 . 90 . . . . . . 81 . . 279 Effects 24 | . 1 . . . . . . 10 . . 1 2 . . . . . . . . . . . . 1 1 . . . . . 2 6 . . . . . . Shutdowns 1 | . . . . . . . . . . . . . . . . . . . . . . . . . . . . . . . . 1 . . . . . . . Energy Bleed 13 | . 1 . . . . . . 8 . . 1 . . . . . . . . . . . . . 1 1 . . . . . 1 . . . . . . . Interference 10 | . . . . . . . . 2 . . . 2 . . . . . . . . . . . . . . . . . . . . 6 . . . . . . Siege Activations 1 | . . . . . . . . 1 . . . . . . . . . . . . . . . . . . . . . . . . . . . . . . . Total Turns 21 | . . . . . . . . 21 . . . . . . . . . . . . . . . . . . . . . . . . . . . . . . . Longest Duration 21 | . . . . . . . . 21 . . . . . . . . . . . . . . . . . . . . . . . . . . . . . . . Robots Corrupted 12 | . 1 1 . . . . . . 10 . . . . . . . . . . . . . . . . . . . . . . . . . . . . . . Combat Hostiles 2 | . 1 . . . . . . . 1 . . . . . . . . . . . . . . . . . . . . . . . . . . . . . . Parts Fried 28 | . 7 . 3 . . 1 . . 17 . . . . . . . . . . . . . . . . . . . . . . . . . . . . . . Impact Corruptions 31 | . 6 1 . . . . . . 24 . . . . . . . . . . . . . . . . . . . . . . . . . . . . . . Robots Melted 2 | . . . . . . . 1 1 . . . . . . . . . . . . . . . . . . . . . . . . . . . . . . . Combat Hostiles 2 | . . . . . . . 1 1 . . . . . . . . . . . . . . . . . . . . . . . . . . . . . . . Parts Melted 15 | . 3 . . . . . 5 6 . . . . . . . . . . . . . . . . . . . . . . . . . . . 1 . . . Heat Transferred 11639 | . 2324 . 685 50 . 87 3922 2498 . 111 . . . . . . . 500 . . . . . . . . . 407 148 . . . . . . 259 333 315 . Parts Sabotaged . | . . . . . . . . . . . . . . . . . . . . . . . . . . . . . . . . . . . . . . . . Parts Stolen . | . . . . . . . . . . . . . . . . . . . . . . . . . . . . . . . . . . . . . . . . Parts Stripped . | . . . . . . . . . . . . . . . . . . . . . . . . . . . . . . . . . . . . . . . . Power Chain Reactions 16 | . 4 . 8 3 . 1 . . . . . . . . . . . . . . . . . . . . . . . . . . . . . . . . . Alert | -11 -10 -10 -9 -9 -9 -8 -8 -8 -7 -7 -7 -7 -7 -7 -6 -6 -6 -6 -6 -6 -6 -5 -5 -5 -5 -5 -5 -5 -5 -4 -4 -4 -3 -2 -2 -2 -1 -1 -1 ------- Run | Yrd Mat Min Mat Min Exi Min Mat Gar Fac Was Fac Low Low Dat Pro Fac Was Fac Low Low Zio Pro Fac Was Fac Ext Cet Arc Hub Fac Was Fac Res Res Qua Sec Acc Com Ac0 Peak Influence 130028 | 40 975 375 1363 774 . 136 474 130028 68434 23947 16594 . . . . 939 328 1124 . . . . 450 94 234 440 467 204 1007 466 73 236 406 230 1756 1919 1265 2532 . Initial 68264 | . 26 355 146 521 . . . 233 68264 23915 16510 . . . . 302 328 229 . . . . 300 64 65 104 136 106 . 466 24 44 85 97 125 1100 1160 720 . Average -670 | 14 676 364 803 644 . 34 236 -1098 68316 23861 16501 . . . . 400 328 636 . . . . 238 70 104 229 325 64 514 185 55 138 263 155 1663 1721 1191 1539 . Maximum Alert Level 5 | . 3 1 4 3 . . 2 5 5 5 5 . . . . 3 1 4 . . . . 2 . 1 2 2 1 3 2 . 1 2 1 5 5 4 5 . Low Security (%) 3 | 100 8 . 3 . . 100 36 . . . . . . . . 14 . . . . . . 37 100 92 44 9 94 8 64 100 95 22 87 . . . . . Level 1 3 | . 11 100 25 . . . 57 . . . . . . . . 57 100 12 . . . . 58 . 7 54 68 5 20 31 . 4 72 12 . . . . . Level 2 1 | . 22 . 18 71 . . 5 . . . . . . . . 19 . 56 . . . . 4 . . 1 22 . 51 3 . . 5 . . . . . . Level 3 1 | . 57 . 14 28 . . . . . . . . . . . 9 . 23 . . . . . . . . . . 19 . . . . . . . . 55 . Level 4 1 | . . . 38 . . . . . . . . . . . . . . 7 . . . . . . . . . . . . . . . . . . 100 . . Level 5 87 | . . . . . . . . 98 100 100 100 . . . . . . . . . . . . . . . . . . . . . . . . . . 44 . High Security . | . . . . . . . . . . . . . . . . . . . . . . . . . . . . . . . . . . . . . . . . Max Security . | . . . . . . . . . . . . . . . . . . . . . . . . . . . . . . . . . . . 99 99 . . . Sterilizations 1 | . . . 1 . . . . . . . . . . . . . . . . . . . . . . . . . . . . . . . . . . . . Squads Dispatched 96 | . 6 . 12 . . . 3 . 10 . 6 . . . . 5 . 12 . . . . 4 . 3 . . . 6 1 . 1 3 2 6 13 2 1 . Investigation 25 | . 4 . 6 . . . . . 1 . 1 . . . . 1 . 4 . . . . 1 . 2 . . . 2 . . . 3 . . . . . . Extermination 12 | . . . . . . . . . . . . . . . . 3 . 4 . . . . 1 . 1 . . . . 1 . 1 . 1 . . . . . Reinforcement 22 | . 2 . 5 . . . 2 . 2 . . . . . . 1 . 2 . . . . 2 . . . . . 3 . . . . 1 . 1 1 . . Assault 35 | . . . 1 . . . . . 6 . 5 . . . . . . 2 . . . . . . . . . . 1 . . . . . 6 12 1 1 . Garrison 2 | . . . . . . . 1 . 1 . . . . . . . . . . . . . . . . . . . . . . . . . . . . . . Intercept . | . . . . . . . . . . . . . . . . . . . . . . . . . . . . . . . . . . . . . . . . Searches Triggered . | . . . . . . . . . . . . . . . . . . . . . . . . . . . . . . . . . . . . . . . . Construction Impeded 4 | . . . . . . . . . . . . . . . . . . 1 . . . . . . . . . . 1 . . . . . . 1 1 . . Haulers Reinforced 2 | . . . . . . . . . . . . . . . . . . 1 . . . . 1 . . . . . . . . . . . . . . . . Active Scanning Responses . | . . . . . . . . . . . . . . . . . . . . . . . . . . . . . . . . . . . . . . . . Cargo Convoy Interrupts . | . . . . . . . . . . . . . . . . . . . . . . . . . . . . . . . . . . . . . . . . Stealth | -11 -10 -10 -9 -9 -9 -8 -8 -8 -7 -7 -7 -7 -7 -7 -6 -6 -6 -6 -6 -6 -6 -5 -5 -5 -5 -5 -5 -5 -5 -4 -4 -4 -3 -2 -2 -2 -1 -1 -1 --------- Run | Yrd Mat Min Mat Min Exi Min Mat Gar Fac Was Fac Low Low Dat Pro Fac Was Fac Low Low Zio Pro Fac Was Fac Ext Cet Arc Hub Fac Was Fac Res Res Qua Sec Acc Com Ac0 Distress Signals 35 | . 1 . 2 . . . 4 . . . . . . . 1 3 . 2 . . . . 6 . 1 3 1 . 3 1 . . 2 . 2 3 . . . Communications Jammed . | . . . . . . . . . . . . . . . . . . . . . . . . . . . . . . . . . . . . . . . . Distress Signals . | . . . . . . . . . . . . . . . . . . . . . . . . . . . . . . . . . . . . . . . . Times Spotted 504 | . 33 . 67 10 . 5 46 26 4 13 3 9 . . 1 23 . 35 . 3 . 2 17 6 9 20 9 23 28 8 4 8 9 5 6 46 4 8 14 Peak Tracking Total 33 | . 5 . 4 4 . 2 9 4 10 6 5 4 . . 1 6 . 5 . 3 . 2 6 6 2 5 5 1 14 4 4 3 1 2 8 33 2 5 14 Tactical Retreats 52 | . 12 . 1 1 . . 3 . 1 2 . 2 . . . 8 . 5 . 1 . . 5 . . 2 1 . 1 . . . . . 1 5 . 1 . Traps | -11 -10 -10 -9 -9 -9 -8 -8 -8 -7 -7 -7 -7 -7 -7 -6 -6 -6 -6 -6 -6 -6 -5 -5 -5 -5 -5 -5 -5 -5 -4 -4 -4 -3 -2 -2 -2 -1 -1 -1 ------- Run | Yrd Mat Min Mat Min Exi Min Mat Gar Fac Was Fac Low Low Dat Pro Fac Was Fac Low Low Zio Pro Fac Was Fac Ext Cet Arc Hub Fac Was Fac Res Res Qua Sec Acc Com Ac0 Traps Triggered 26 | . 3 . 1 . . . 2 7 1 . 3 . . . . 2 . 1 . . . . 2 . . . . . . 1 . 2 . . . . . 1 . Indirectly . | . . . . . . . . . . . . . . . . . . . . . . . . . . . . . . . . . . . . . . . . Trap Hack Attempts 90 | . 86 . . . . . . . . . . . . . . . . . . . . . . . . . . . . . . 4 . . . . . . . Triggered . | . . . . . . . . . . . . . . . . . . . . . . . . . . . . . . . . . . . . . . . . Disarmed . | . . . . . . . . . . . . . . . . . . . . . . . . . . . . . . . . . . . . . . . . Reprogrammed 13 | . 13 . . . . . . . . . . . . . . . . . . . . . . . . . . . . . . . . . . . . . . Reused 1 | . . . . . . . 1 . . . . . . . . . . . . . . . . . . . . . . . . . . . . . . . . Traps Extracted 12 | . 12 . . . . . . . . . . . . . . . . . . . . . . . . . . . . . . . . . . . . . . Installed 1 | . . . . . . . 1 . . . . . . . . . . . . . . . . . . . . . . . . . . . . . . . . Triggered 2 | . . . . . . . 1 . . . . . . . . . . . . . . 1 . . . . . . . . . . . . . . . . . Most Traps Carried 12 | . 12 12 12 12 12 12 12 7 3 3 3 3 3 3 3 3 . . . . . . . . . . . . . . . . . . . . . . . Machines | -11 -10 -10 -9 -9 -9 -8 -8 -8 -7 -7 -7 -7 -7 -7 -6 -6 -6 -6 -6 -6 -6 -5 -5 -5 -5 -5 -5 -5 -5 -4 -4 -4 -3 -2 -2 -2 -1 -1 -1 ---------- Run | Yrd Mat Min Mat Min Exi Min Mat Gar Fac Was Fac Low Low Dat Pro Fac Was Fac Low Low Zio Pro Fac Was Fac Ext Cet Arc Hub Fac Was Fac Res Res Qua Sec Acc Com Ac0 Machines Disabled 138 | . 32 1 3 . . . 3 15 . . . . . . . 32 . 30 . . . . . . 2 2 . 3 2 2 . . . . 4 4 . 2 1 Max in Single Turn 12 | . 3 1 1 . . . 1 2 . . . . . . . 12 . 9 . . . . . . . 1 . 1 . . . . . . 1 1 . 2 1 Garrison Access 9 | . . . . . . . . . . . 1 . . . . . . . . . . . 2 . . . . . . . . 1 3 . . . 2 . . Garrison Relay 6 | . . . . . . . . 6 . . . . . . . . . . . . . . . . . . . . . . . . . . . . . . . Phase Generator 1 | . . . . . . . . 1 . . . . . . . . . . . . . . . . . . . . . . . . . . . . . . . Network Hub 1 | . . . . . . . . . . . . . . . . . . . . . . . . . . . . . 1 . . . . . . . . . . Machines Repaired . | . . . . . . . . . . . . . . . . . . . . . . . . . . . . . . . . . . . . . . . . Machines Dismantled 8 | . . . . . . . . 5 . . . . . . . . . . . . . . . . . . . . . . . . . . 1 2 . . . Machines Sabotaged 1 | . . . . . . . . . . . . . . . . . . . . . . . . . . . . . 1 . . . . . . . . . . Overloaded Fab Kills . | . . . . . . . . . . . . . . . . . . . . . . . . . . . . . . . . . . . . . . . . Hacking | -11 -10 -10 -9 -9 -9 -8 -8 -8 -7 -7 -7 -7 -7 -7 -6 -6 -6 -6 -6 -6 -6 -5 -5 -5 -5 -5 -5 -5 -5 -4 -4 -4 -3 -2 -2 -2 -1 -1 -1 --------- Run | Yrd Mat Min Mat Min Exi Min Mat Gar Fac Was Fac Low Low Dat Pro Fac Was Fac Low Low Zio Pro Fac Was Fac Ext Cet Arc Hub Fac Was Fac Res Res Qua Sec Acc Com Ac0 Machines Accessed 174 | . 8 . 12 1 5 . 7 2 1 . 9 1 2 4 . 15 . 23 1 . . . 13 . 14 4 3 1 2 7 . 6 24 4 . . 4 1 . Terminals 102 | . 5 . 7 1 . . 6 2 . . 3 . 1 . . 7 . 13 . . . . 8 . 10 4 3 . 2 5 . 5 13 4 . . 2 1 . Fabricators 16 | . . . . . . . . . . . . . . . . 2 . 6 . . . . 2 . 3 . . . . . . . 3 . . . . . . Repair Stations 9 | . 1 . 1 . . . . . . . 2 . . . . 1 . 3 . . . . . . . . . . . . . . 1 . . . . . . Recycling Units 10 | . 2 . 2 . . . . . . . 2 . . . . 2 . 1 . . . . . . . . . . . . . . 1 . . . . . . Scanalyzers 7 | . . . 2 . . . . . . . . . . . . . . . . . . . . . . . . . . 2 . . 3 . . . . . . Garrison Access 17 | . . . . . . . 1 . 1 . 2 . . . . 3 . . . . . . 3 . 1 . . . . . . 1 3 . . . 2 . . Total Hacks 581 | . 15 . 32 2 50 . 14 2 2 . 14 1 2 30 . 39 . 56 1 . . . 41 . 45 18 8 25 5 45 . 23 92 10 . . 7 2 . Successful 381 | . 9 . 23 1 50 . 10 2 2 . 7 1 2 30 . 25 . 29 1 . . . 20 . 30 8 6 25 2 26 . 14 52 3 . . 3 . . Failed 199 | . 6 . 9 1 . . 4 . . . 7 . . . . 14 . 27 . . . . 21 . 15 10 2 . 3 19 . 9 39 7 . . 4 2 . Catastrophic 31 | . . . . . . . . . . . 1 . . . . 4 . 3 . . . . 3 . 2 1 . . 2 5 . 2 4 2 . . 2 . . Database Lockouts 1 | . . . . . . . . . . . . . . . . . . . . . . . . . . . . . . . . . 1 . . . . . . Manual 282 | . 15 . 31 2 1 . 11 . 1 . 5 . . . . 24 . 27 . . . . 29 . 31 17 1 . 4 23 . 18 33 7 . . . 2 . Terminals 352 | . 10 . 25 2 . . 13 2 . . 5 . 1 . . 21 . 34 . . . . 29 . 38 18 8 . 5 42 . 21 61 10 . . 5 2 . Fabricators 44 | . . . . . . . . . . . . . . . . 2 . 15 . . . . 8 . 6 . . . . . . . 13 . . . . . . Repair Stations 24 | . 3 . 1 . . . . . . . 4 . . . . 6 . 6 . . . . . . . . . . . . . . 4 . . . . . . Recycling Units 12 | . 2 . 4 . . . . . . . 2 . . . . 2 . 1 . . . . . . . . . . . . . . 1 . . . . . . Scanalyzers 15 | . . . 2 . . . . . . . . . . . . . . . . . . . . . . . . . . 3 . . 10 . . . . . . Garrison Access 26 | . . . . . . . 1 . 2 . 3 . . . . 8 . . . . . . 4 . 1 . . . . . . 2 3 . . . 2 . . Terminal Hacks 183 | . . . 2 1 50 . 2 2 . . 2 1 2 30 . 5 . 7 1 . . . 3 . 9 1 6 25 . 14 . 4 13 2 . . 1 . . Record 92 | . . . . . 49 . . . . . . . 1 11 . . . 1 . . . . . . . . 5 25 . . . . . . . . . . . Part Schematic 19 | . . . . . . . . . . . . . . 10 . 1 . . . . . . . . 2 . . . . . . . 6 . . . . . . Robot Schematic 6 | . . . . . . . . . . . . . . 6 . . . . . . . . . . . . . . . . . . . . . . . . . Robot Analysis 1 | . . . . . . . . . . . . . . . . . . . . . . . . . . . . . . . . . 1 . . . . . . Prototype ID Bank 13 | . . . . . . . 1 . . . 1 . . 3 . 1 . 1 . . . . . . 2 . . . . 2 . 1 1 . . . . . . Open Door 6 | . . . . . . . . 1 . . . 1 1 . . . . . 1 . . . . . . . 1 . . . . . . 1 . . . . . Level Access Points 1 | . . . . . . . . . . . . . . . . . . . . . . . . . . . . . . . . 1 . . . . . . . Branch Access Points 3 | . . . . . . . . . . . 1 . . . . . . . . . . . . . 1 . . . . . . 1 . . . . . . . Emergency Access Points 1 | . . . . . . . . 1 . . . . . . . . . . . . . . . . . . . . . . . . . . . . . . . Machine Index 1 | . . . . . . . . . . . . . . . . . . . . . . . . . 1 . . . . . . . . . . . . . . Terminal Index 6 | . . . . . . . . . . . . . . . . . . 2 . . . . . . 1 . . . . 1 . . 1 1 . . . . . Fabricator Index 2 | . . . . . . . . . . . . . . . . . . . . . . . 1 . . . . . . 1 . . . . . . . . . Repair Station Index 1 | . . . . . . . . . . . . . . . . . . . . . . . . . . . . . . 1 . . . . . . . . . Scanalyzer Index 1 | . . . . . . . . . . . . . . . . . . . . . . . . . . . . . . 1 . . . . . . . . . Garrison Index 1 | . . . . . . . . . . . . . . . . . . . . . . . . . . . . . . 1 . . . . . . . . . Alert Level 1 | . . . 1 . . . . . . . . . . . . . . . . . . . . . . . . . . . . . . . . . . . . Unreport Threat 8 | . . . 1 . . . 1 . . . . . . . . . . 1 . . . . 1 . . . . . . 3 . . . . . . 1 . . Locate Traps 3 | . . . . . . . . . . . . . . . . 1 . . . . . . . . . 1 . . . 1 . . . . . . . . . Recall Investigation 5 | . . . . . . . . . . . . . . . . . . 2 . . . . . . 1 . . . . . . . 2 . . . . . . Hauler Manifests 5 | . . . . . . . . . . . . . . . . . . . . . . . 1 . 1 . . . . 1 . 1 1 . . . . . . Registered Components 3 | . . . . . . . . . . . . . . . . 1 . . . . . . . . . . . . . 1 . . 1 . . . . . . Registered Prototypes 2 | . . . . . . . . . . . . . . . . 1 . . . . . . . . . . . . . 1 . . . . . . . . . Zone Layout 1 | . . . . 1 . . . . . . . . . . . . . . . . . . . . . . . . . . . . . . . . . . . Derelict Proto ID Bank 1 | . . . . . 1 . . . . . . . . . . . . . . . . . . . . . . . . . . . . . . . . . . Fabricator Hacks 18 | . . . . . . . . . . . . . . . . . . 6 . . . . 2 . 4 . . . . . . . 6 . . . . . . Load Schematic 9 | . . . . . . . . . . . . . . . . . . 3 . . . . 1 . 2 . . . . . . . 3 . . . . . . Build 9 | . . . . . . . . . . . . . . . . . . 3 . . . . 1 . 2 . . . . . . . 3 . . . . . . Repair Station Hacks 10 | . . . . . . . . . . . . . . . . 4 . 4 . . . . . . . . . . . . . . 2 . . . . . . Scan Component 5 | . . . . . . . . . . . . . . . . 2 . 2 . . . . . . . . . . . . . . 1 . . . . . . Repair 5 | . . . . . . . . . . . . . . . . 2 . 2 . . . . . . . . . . . . . . 1 . . . . . . Recycling Unit Hacks . | . . . . . . . . . . . . . . . . . . . . . . . . . . . . . . . . . . . . . . . . Scanalyzer 12 | . . . . . . . . . . . . . . . . . . . . . . . . . . . . . . 3 . . 9 . . . . . . Insert Component 10 | . . . . . . . . . . . . . . . . . . . . . . . . . . . . . . 2 . . 8 . . . . . . Analyze 2 | . . . . . . . . . . . . . . . . . . . . . . . . . . . . . . 1 . . 1 . . . . . . Garrison Access Hacks 20 | . . . . . . . 1 . 1 . 3 . . . . 3 . . . . . . 4 . 1 . . . . . . 2 3 . . . 2 . . Unlock Access 1 | . . . . . . . 1 . . . . . . . . . . . . . . . . . . . . . . . . . . . . . . . . Seal Access 9 | . . . . . . . . . . . 1 . . . . . . . . . . . 2 . . . . . . . . 1 3 . . . 2 . . Coupler Status 10 | . . . . . . . . . 1 . 2 . . . . 3 . . . . . . 2 . 1 . . . . . . 1 . . . . . . . Unauthorized Hacks 138 | . 9 . 21 . . . 7 . 1 . 2 . . . . 13 . 12 . . . . 11 . 16 7 . . 2 9 . 8 19 1 . . . . . Terminals 111 | . 6 . 16 . . . 7 . . . . . . . . 7 . 8 . . . . 9 . 14 7 . . 2 9 . 8 17 1 . . . . . Track 4 | . . . 3 . . . . . . . . . . . . . . . . . . . . . . 1 . . . . . . . . . . . . . Assimilate 14 | . 1 . 1 . . . 1 . . . . . . . . . . 1 . . . . . . 4 . . . . . . 1 4 1 . . . . . Botnet 25 | . 1 . 5 . . . . . . . . . . . . 2 . 1 . . . . 2 . 4 1 . . . 3 . 3 3 . . . . . . Disrupt 5 | . . . 1 . . . . . . . . . . . . . . . . . . . 1 . . 3 . . . . . . . . . . . . . Operators 7 | . . . 1 . . . . . . . . . . . . 1 . . . . . . 1 . 1 1 . . . 1 . . 1 . . . . . . Skim 54 | . 4 . 5 . . . 6 . . . . . . . . 4 . 6 . . . . 5 . 5 1 . . . 5 . 4 9 . . . . . . Sabotage 2 | . . . . . . . . . . . . . . . . . . . . . . . . . . . . . 2 . . . . . . . . . . Fabricators 8 | . . . . . . . . . . . . . . . . . . 3 . . . . 2 . 2 . . . . . . . 1 . . . . . . Prioritize 3 | . . . . . . . . . . . . . . . . . . 1 . . . . 1 . 1 . . . . . . . . . . . . . . Liberate 1 | . . . . . . . . . . . . . . . . . . 1 . . . . . . . . . . . . . . . . . . . . . Haulers 4 | . . . . . . . . . . . . . . . . . . 1 . . . . 1 . 1 . . . . . . . 1 . . . . . . Repair Stations 3 | . 1 . 1 . . . . . . . . . . . . 1 . . . . . . . . . . . . . . . . . . . . . . . Mechanics 1 | . . . . . . . . . . . . . . . . 1 . . . . . . . . . . . . . . . . . . . . . . . Patch 2 | . 1 . 1 . . . . . . . . . . . . . . . . . . . . . . . . . . . . . . . . . . . . Recycling Units 9 | . 2 . 2 . . . . . . . 2 . . . . 1 . 1 . . . . . . . . . . . . . . 1 . . . . . . Recyclers 3 | . . . . . . . . . . . 1 . . . . . . 1 . . . . . . . . . . . . . . 1 . . . . . . Mask 1 | . . . . . . . . . . . . . . . . 1 . . . . . . . . . . . . . . . . . . . . . . . Tunnel 5 | . 2 . 2 . . . . . . . 1 . . . . . . . . . . . . . . . . . . . . . . . . . . . . Scanalyzers 2 | . . . 2 . . . . . . . . . . . . . . . . . . . . . . . . . . . . . . . . . . . . Extract 2 | . . . 2 . . . . . . . . . . . . . . . . . . . . . . . . . . . . . . . . . . . . Garrison Access 5 | . . . . . . . . . 1 . . . . . . 4 . . . . . . . . . . . . . . . . . . . . . . . Broadcast 1 | . . . . . . . . . . . . . . . . 1 . . . . . . . . . . . . . . . . . . . . . . . Restock 3 | . . . . . . . . . . . . . . . . 3 . . . . . . . . . . . . . . . . . . . . . . . Eject 1 | . . . . . . . . . 1 . . . . . . . . . . . . . . . . . . . . . . . . . . . . . . Data Cores Recovered 5 | . 1 . . . . . . . . . . . . . . . . . . . . . 2 . . . . . . . . . . . . . 2 . . Used 2 | . . . . . . . . . . . . . . . . . . . . . . . 1 . . . . . . . . . . . . . 1 . . Hacking Detections 126 | . 6 . 8 1 . . 5 1 1 . 6 . . . . 14 . 22 . . . . 10 . 12 3 2 . 2 5 . 4 18 3 . . 2 1 . Full Trace Events 10 | . . . . . . . . . . . . . . . . . . 4 . . . . 1 . 2 . . . . . . . 3 . . . . . . Feedback Events . | . . . . . . . . . . . . . . . . . . . . . . . . . . . . . . . . . . . . . . . . Feedback Blocked . | . . . . . . . . . . . . . . . . . . . . . . . . . . . . . . . . . . . . . . . . Robot Schematics Acquired 6 | . . . . . . . . . . . . . . 6 . . . . . . . . . . . . . . . . . . . . . . . . . Robots Built 2 | . . . . . . . . . . . . . . . . . . . . . . . . . 2 . . . . . . . . . . . . . . Authchips . | . . . . . . . . . . . . . . . . . . . . . . . . . . . . . . . . . . . . . . . . Time 50 | . . . . . . . . . . . . . . . . . . . . . . . . . 50 . . . . . . . . . . . . . . Total Robot Build Rating 10 | . . . . . . . . . . . . . . . . . . . . . . . . . 10 . . . . . . . . . . . . . . Part Schematics Acquired 28 | . . . 7 . . . . . . . . . . 10 . 1 . . . . . . . . 2 . . . . 1 . . 7 . . . . . . Parts Built 8 | . . . . . . . . . . . . . . . . . . 3 . . . . 1 . 1 . . . . . . . 3 . . . . . . Authchips . | . . . . . . . . . . . . . . . . . . . . . . . . . . . . . . . . . . . . . . . . Time 650 | . . . . . . . . . . . . . . . . . . 269 . . . . 76 . 76 . . . . . . . 229 . . . . . . Total Part Build Rating 47 | . . . . . . . . . . . . . . . . . . 14 . . . . 5 . 5 . . . . . . . 23 . . . . . . Parts Repaired 5 | . . . . . . . . . . . . . . . . 2 . 2 . . . . . . . . . . . . . . 1 . . . . . . Time 224 | . . . . . . . . . . . . . . . . 121 . 59 . . . . . . . . . . . . . . 44 . . . . . . Parts Recycled . | . . . . . . . . . . . . . . . . . . . . . . . . . . . . . . . . . . . . . . . . Recycled Matter . | . . . . . . . . . . . . . . . . . . . . . . . . . . . . . . . . . . . . . . . . Retrieved Matter . | . . . . . . . . . . . . . . . . . . . . . . . . . . . . . . . . . . . . . . . . Retrieved Components . | . . . . . . . . . . . . . . . . . . . . . . . . . . . . . . . . . . . . . . . . Parts Scanalyzed 2 | . . . . . . . . . . . . . . . . . . . . . . . . . . . . . . 1 . . 1 . . . . . . Part Schematics Acquired 2 | . . . . . . . . . . . . . . . . . . . . . . . . . . . . . . 1 . . 1 . . . . . . Parts Damaged 1 | . . . . . . . . . . . . . . . . . . . . . . . . . . . . . . 1 . . . . . . . . . Bothacking | -11 -10 -10 -9 -9 -9 -8 -8 -8 -7 -7 -7 -7 -7 -7 -6 -6 -6 -6 -6 -6 -6 -5 -5 -5 -5 -5 -5 -5 -5 -4 -4 -4 -3 -2 -2 -2 -1 -1 -1 ------------ Run | Yrd Mat Min Mat Min Exi Min Mat Gar Fac Was Fac Low Low Dat Pro Fac Was Fac Low Low Zio Pro Fac Was Fac Ext Cet Arc Hub Fac Was Fac Res Res Qua Sec Acc Com Ac0 Used RIF Installer 1 | . . . . . . . . 1 . . . . . . . . . . . . . . . . . . . . . . . . . . . . . . . Robots Hacked 75 | . 1 . . . 11 . . 6 10 7 1 5 . 1 1 3 . 1 2 . 4 . 2 . 2 8 . 1 1 3 . 2 2 . . . . . 1 Non-combat 27 | . 1 . . . 3 . . . 6 1 1 1 . . . 2 . . 2 . 1 . 2 . 1 1 . . . 3 . 2 . . . . . . . Combat 48 | . . . . . 8 . . 6 4 6 . 4 . 1 1 1 . 1 . . 3 . . . 1 7 . 1 1 . . . 2 . . . . . 1 Robot Hacks Applied 82 | . 1 . . . 11 . . 6 12 12 1 5 . 1 1 3 . 1 2 . 4 . 2 . 2 8 . 1 1 3 . 2 2 . . . . . 1 parse_system 55 | . 1 . . . 11 . . . 8 9 . 1 . 1 . . . . 2 . 4 . 1 . 2 8 . 1 . 1 . 2 2 . . . . . 1 find_chute 4 | . . . . . . . . . 1 . . . . . . 1 . . . . . . 1 . . . . . . 1 . . . . . . . . . find_recycling 2 | . . . . . . . . . . . . . . . . 1 . . . . . . . . . . . . . 1 . . . . . . . . . map_route 1 | . . . . . . . . . . . 1 . . . . . . . . . . . . . . . . . . . . . . . . . . . . ignore_targets 3 | . . . . . . . . . . 3 . . . . . . . . . . . . . . . . . . . . . . . . . . . . . wipe_record 1 | . . . . . . . . . 1 . . . . . . . . . . . . . . . . . . . . . . . . . . . . . . reboot_system 4 | . . . . . . . . 2 1 . . . . . . . . 1 . . . . . . . . . . . . . . . . . . . . . go_dormant 1 | . . . . . . . . 1 . . . . . . . . . . . . . . . . . . . . . . . . . . . . . . . overwrite_iff 4 | . . . . . . . . . . . . 4 . . . . . . . . . . . . . . . . . . . . . . . . . . . formatsys_high 7 | . . . . . . . . 3 1 . . . . . 1 1 . . . . . . . . . . . . 1 . . . . . . . . . . Relay Couplers Released 26 | . . . . . . . . 23 3 . . . . . . . . . . . . . . . . . . . . . . . . . . . . . . Ejected 3 | . . . . . . . . . 3 . . . . . . . . . . . . . . . . . . . . . . . . . . . . . . Machine Destruction 23 | . . . . . . . . 23 . . . . . . . . . . . . . . . . . . . . . . . . . . . . . . . Attached 13 | . . . . . . . . 5 2 1 . 1 . . 1 1 . . . . . . . . . . . . 1 . . . . . 1 . . . . Fabnet Peak Effective % . | . . . . . . . . . . . . . . . . . . . . . . . . . . . . . . . . . . . . . . . . Robots Rewired 15 | . . . 1 . . . . . 1 . . . . . . . . . . . . . . . . 10 . . . 3 . . . . . . . . . Allies Hacked . | . . . . . . . . . . . . . . . . . . . . . . . . . . . . . . . . . . . . . . . . Hacks Repelled . | . . . . . . . . . . . . . . . . . . . . . . . . . . . . . . . . . . . . . . . . Allies | -11 -10 -10 -9 -9 -9 -8 -8 -8 -7 -7 -7 -7 -7 -7 -6 -6 -6 -6 -6 -6 -6 -5 -5 -5 -5 -5 -5 -5 -5 -4 -4 -4 -3 -2 -2 -2 -1 -1 -1 -------- Run | Yrd Mat Min Mat Min Exi Min Mat Gar Fac Was Fac Low Low Dat Pro Fac Was Fac Low Low Zio Pro Fac Was Fac Ext Cet Arc Hub Fac Was Fac Res Res Qua Sec Acc Com Ac0 Total Allies 77 | . . . 1 . . . 1 5 2 19 . 4 . . 1 1 . 1 . . . . . . 6 21 5 . 1 3 . 1 4 1 . . . . . Largest Group 19 | . . . 1 . . . 1 2 3 19 . 2 . . 1 1 . 1 . . . . . . 6 18 19 17 7 3 . 1 4 1 . . . . . Highest-Rated Group 988 | . . . 15 . . . 10 62 60 475 . 24 . . 29 32 . 10 . . . . . . 154 614 988 854 463 115 . 26 126 10 . . . . . Highest-Rated Ally 159 | . . . 15 . . . 10 31 32 35 . 12 . . 29 32 . 10 . . . . . . 41 159 159 159 137 56 . 26 45 10 . . . . . Total Orders 66 | . . . . . . . . . . . . . . . . . . 13 . . 18 . . . . 28 . 2 . . . . . . 5 . . . . STAY 5 | . . . . . . . . . . . . . . . . . . . . . 2 . . . . 2 . 1 . . . . . . . . . . . ROAM 3 | . . . . . . . . . . . . . . . . . . . . . 3 . . . . . . . . . . . . . . . . . . FOLLOW 5 | . . . . . . . . . . . . . . . . . . . . . 2 . . . . 2 . 1 . . . . . . . . . . . EXPLORE 23 | . . . . . . . . . . . . . . . . . . . . . 8 . . . . 12 . . . . . . . . 3 . . . . RETURN 30 | . . . . . . . . . . . . . . . . . . 13 . . 3 . . . . 12 . . . . . . . . 2 . . . . Ally Attacks 694 | . . . 1 . . . . 20 9 134 . 17 . . 4 4 . 93 . . . . . . 13 172 81 26 101 19 . . . . . . . . . Total Damage 19347 | . . . . . . . . 265 182 4606 . 185 . . 57 85 . 1965 . . . . . . 519 3404 2132 804 4243 900 . . . . . . . . . Kills 110 | . . . . . . . . 2 1 13 . 2 . . . . . 13 . . . . . . 3 23 9 4 33 7 . . . . . . . . . Allies Corrupted . | . . . . . . . . . . . . . . . . . . . . . . . . . . . . . . . . . . . . . . . . Allies Melted 2 | . . . . . . . . . 1 . . . . . . . . . . . . . . . . 1 . . . . . . . . . . . . . Intel | -11 -10 -10 -9 -9 -9 -8 -8 -8 -7 -7 -7 -7 -7 -7 -6 -6 -6 -6 -6 -6 -6 -5 -5 -5 -5 -5 -5 -5 -5 -4 -4 -4 -3 -2 -2 -2 -1 -1 -1 ------- Run | Yrd Mat Min Mat Min Exi Min Mat Gar Fac Was Fac Low Low Dat Pro Fac Was Fac Low Low Zio Pro Fac Was Fac Ext Cet Arc Hub Fac Was Fac Res Res Qua Sec Acc Com Ac0 Robot Analysis Total 1 | . . . . . . . . . . . . . . . . . . . . . . . . . . . . . . . . . 1 . . . . . . Derelict Logs Recovered 8 | . . . . 2 . . . . . . . 1 . . 2 . . . 1 1 . 1 . . . . . . . . . . . . . . . . . Drone Launches 38 | . . . . . . . . . . . . . . . . . . 17 . . 3 . . . . 13 . . . . . . . . 5 . . . . Drone Recoveries 33 | . . . . . . . . . . . . . . . . . . 17 . . 3 . . . . 11 . . . . . . . . 2 . . . . Exploration | -11 -10 -10 -9 -9 -9 -8 -8 -8 -7 -7 -7 -7 -7 -7 -6 -6 -6 -6 -6 -6 -6 -5 -5 -5 -5 -5 -5 -5 -5 -4 -4 -4 -3 -2 -2 -2 -1 -1 -1 ------------- Run | Yrd Mat Min Mat Min Exi Min Mat Gar Fac Was Fac Low Low Dat Pro Fac Was Fac Low Low Zio Pro Fac Was Fac Ext Cet Arc Hub Fac Was Fac Res Res Qua Sec Acc Com Ac0 Turns Passed 224806 | 112 2823 54 3515 707 813 1119 2646 194410 537 408 458 352 421 37 308 1704 160 1818 387 478 596 449 1358 27 785 1795 419 1077 782 682 40 659 1428 282 151 285 257 334 133 Spaces Moved 48994 | 47 1228 25 1374 245 452 512 1003 9362 703 543 874 969 1058 94 600 3865 389 3928 769 1063 355 712 3146 93 1969 1553 220 299 416 1446 75 1612 4484 578 433 731 888 431 450 Core 7434 | 1 . . . . . . . 7432 . . . . . . . . . . . 1 . . . . . . . . . . . . . . . . . . . Treads 3445 | . 249 . 3 . . . 634 1413 . . . . . . . . . 4 . . . . . . . 207 220 299 416 . . . . . . . . . . Legs . | . . . . . . . . . . . . . . . . . . . . . . . . . . . . . . . . . . . . . . . . Wheels 4516 | 46 979 25 1371 245 452 512 369 517 . . . . . . . . . . . . . . . . . . . . . . . . . . . . . . . Hover . | . . . . . . . . . . . . . . . . . . . . . . . . . . . . . . . . . . . . . . . . Flight 33599 | . . . . . . . . . 703 543 874 969 1058 94 600 3865 389 3924 769 1062 355 712 3146 93 1969 1346 . . . 1446 75 1612 4484 578 433 731 888 431 450 Fastest Speed 5 | 50 100 200 175 175 175 175 150 150 23 23 23 23 23 25 25 25 25 21 21 21 21 21 20 23 23 23 162 163 163 23 23 23 18 15 5 5 15 15 5 Average Speed 280 | 98 157 200 197 187 175 183 211 1263 23 23 40 23 24 25 25 25 25 25 21 21 21 21 24 23 23 71 162 163 163 23 23 23 20 15 14 14 16 15 14 Slowest Speed 1550 | 100 240 200 320 190 175 190 320 1550 23 23 99 23 25 25 25 390 104 240 21 550 89 23 25 23 23 261 163 163 165 23 23 96 24 15 15 15 18 15 35 Overloaded Moves 170 | . . . . . . . . . . . . . . . . . . . . . . . 64 . . . . . . . . . . . 11 39 . . 56 Propulsion Burnouts . | . . . . . . . . . . . . . . . . . . . . . . . . . . . . . . . . . . . . . . . . Robots Hopped 275 | . . . . . . . . . 38 7 1 . . . . 28 . 62 . 1 . . 54 . 19 4 . . . 19 . 5 10 2 4 10 2 3 6 Cave-ins Triggered . | . . . . . . . . . . . . . . . . . . . . . . . . . . . . . . . . . . . . . . . . Teleports 2 | . . . . . . . . . . . . . . . . . . . . . . . . . . . . . . . . . . . . . . 1 1 Exploration Rate (%) 65 | 3 98 11 99 62 93 97 69 99 12 98 25 94 90 75 66 57 96 69 73 94 89 73 62 80 54 96 83 99 41 22 91 40 83 19 70 61 21 22 29 Regions Visited 39 Branch Regions 20 Pre-discovered Areas 19 | . 2 . 4 . 1 . 3 . . . 1 . . 1 1 . . . 1 1 1 . 2 . . . . . . . . . 1 . . . . . . Known Exits Taken 24 | . . . . . . 1 1 . . . 1 1 1 1 1 . . 1 1 1 1 1 . . 1 1 1 1 1 . . 1 1 1 1 1 1 1 . Unknown Exits Taken 6 | 1 1 1 1 1 1 . . . . . . . . . . . . . . . . . . . . . . . . . . . . . . . . . . Scrap Searched 19 | . . 1 . 2 . 1 . . . . . 3 2 . 3 . . . . 3 1 3 . . . . . . . . . . . . . . . . . Spaces Dug 1178 | . 1 . . 1 . 26 7 6 4 . 1 . 3 . 3 61 . 49 11 11 . 7 41 . 18 2 . . 4 11 2 20 20 9 14 7 6 833 . Terrain Destroyed 1922 | . 179 . 57 17 . 46 80 144 4 1 1 . 3 . 3 112 . 167 11 11 . 7 41 . 18 2 60 26 8 11 2 20 20 9 14 8 7 833 . Melee 252 | . 1 . . 1 . 1 4 6 4 . 1 . 3 . 3 51 . 37 9 3 . 3 36 . 17 2 . . 3 10 1 18 20 5 . . 5 8 . Projectile 130 | . . . . . . 1 30 2 . 1 . . . . . 10 . 3 2 8 . 4 5 . 1 . . 26 5 1 1 2 . 4 14 8 2 . . AOE 1540 | . 178 . 57 16 . 44 46 136 . . . . . . . 51 . 127 . . . . . . . . 60 . . . . . . . . . . 825 . Terrain Rammed . | . . . . . . . . . . . . . . . . . . . . . . . . . . . . . . . . . . . . . . . . Walls Destroyed . | . . . . . . . . . . . . . . . . . . . . . . . . . . . . . . . . . . . . . . . . Machines Disabled . | . . . . . . . . . . . . . . . . . . . . . . . . . . . . . . . . . . . . . . . . Actions | -11 -10 -10 -9 -9 -9 -8 -8 -8 -7 -7 -7 -7 -7 -7 -6 -6 -6 -6 -6 -6 -6 -5 -5 -5 -5 -5 -5 -5 -5 -4 -4 -4 -3 -2 -2 -2 -1 -1 -1 --------- Run | Yrd Mat Min Mat Min Exi Min Mat Gar Fac Was Fac Low Low Dat Pro Fac Was Fac Low Low Zio Pro Fac Was Fac Ext Cet Arc Hub Fac Was Fac Res Res Qua Sec Acc Com Ac0 Total 133695 | 79 1779 26 1932 458 467 649 1363 85269 979 791 967 1089 1202 106 744 4373 444 4512 972 1294 877 986 3558 96 2224 2205 279 811 481 1736 91 1803 4868 725 484 859 960 657 500 Wait 81859 | 2 193 . 316 187 . 93 191 75605 193 206 38 97 125 12 123 323 22 410 181 213 498 243 293 2 222 553 45 449 28 198 8 86 218 112 6 91 36 199 42 Move 48444 | 46 1227 24 1373 244 451 511 1002 9361 632 532 871 968 1057 93 599 3812 388 3813 768 1060 354 711 3041 92 1932 1544 219 298 415 1415 74 1601 4463 573 424 712 883 424 437 Hop 239 | . . . . . . . . . 33 3 1 . . . . 25 . 52 . 1 . . 51 . 17 4 . . . 12 . 5 10 2 4 8 2 3 6 Pick Up 217 | 9 33 . 23 1 1 3 15 16 14 2 5 2 1 . 2 9 1 15 . . 5 . 8 . 1 10 . . 2 11 . 6 15 . 5 1 . . 1 Fast Attach 138 | 6 . . 2 1 . 2 9 10 2 1 4 3 1 . . 15 10 9 1 2 2 2 4 . 1 11 6 5 . 9 . 9 5 . . 2 2 2 . Attach 101 | 1 2 . 5 2 1 . 2 4 8 . 1 1 1 . 1 11 . 12 1 . 5 2 3 . . 6 . . . 10 1 3 1 2 4 . 3 6 2 Detach 67 | . . . . . . . 1 7 7 . 3 2 1 . . 8 1 4 1 . 2 2 . . . 6 1 1 . 7 . 2 3 . 3 2 2 1 . Swap 656 | . 43 . 45 3 3 8 28 52 34 20 6 8 6 . 9 49 12 62 6 6 . 10 64 2 12 26 . 11 9 19 6 17 66 7 2 3 . 2 . Drop 291 | . 19 . 31 . . 3 21 21 15 3 9 1 . . 3 23 10 25 . 1 7 2 16 . 2 10 5 3 3 20 . 11 18 . 3 2 2 1 1 Fire 819 | 15 145 . 135 19 . 28 87 109 17 24 3 7 1 1 2 20 . 12 4 8 4 4 9 . 4 27 3 44 18 11 1 2 . 4 17 18 15 1 . Melee 622 | . 29 2 1 1 11 1 5 12 24 . 8 . 9 . 5 78 . 80 10 3 . 10 69 . 33 8 . . 3 24 1 57 69 25 . . 15 18 11 Ram 1 | . 1 . . . . . . . . . . . . . . . . . . . . . . . . . . . . . . . . . . . . . . Kick . | . . . . . . . . . . . . . . . . . . . . . . . . . . . . . . . . . . . . . . . . Crush 6 | . 1 . 1 . . . 1 . . . . . . . . . . . . . . . . . . . . . 3 . . . . . . . . . . Escape Stasis 83 | . . . . . . . . 47 . . 18 . . . . . . 18 . . . . . . . . . . . . . . . . . . . . . Rewire . | . . . . . . . . . . . . . . . . . . . . . . . . . . . . . . . . . . . . . . . . Trap 91 | . 86 . . . . . 1 . . . . . . . . . . . . . . . . . . . . . . . . 4 . . . . . . . Miscellaneous 61 | . . . . . . . . 25 . . . . . . . . . . . . . . . . . . . . . . . . . . 16 20 . . . Route ------- -11/Scrapyard -10/Materials (discovered 4 exits: *Mat x3 / [*Min]) -10/Mines -9/Materials (discovered 4 exits: *Mat x3 / *Min) -9/Mines (discovered 3 exits: *Mat x2 / *Exi) -9/Exiles (discovered 2 exits: [*Min x2]) -8/Mines (discovered 2 exits: *Mat x2) -8/Materials (discovered 4 exits: *Fac x3 / Gar) -8/Garrison (discovered 3 exits: *Fac x3) -7/Factory (discovered 7 exits: *Fac x4 / Sto / *Low x2) -7/Waste -7/Factory (discovered 4 exits: Fac / *Sto / *Low x2) -7/Lower Caves -7/Lower Caves -7/Data Miner -6/Proximity Caves -6/Factory (discovered 2 exits: Fac / *Low) -6/Waste -6/Factory (discovered 6 exits: *Fac x4 / *Low x2) -6/Lower Caves -6/Lower Caves (discovered 2 exits: *Fac / *Zio) -6/Zion -5/Proximity Caves -5/Factory (discovered 5 exits: Fac x2 / *Upp x2 / *Ext) -5/Waste -5/Factory (discovered 8 exits: *Fac x4 / Upp x2 / *Ext x2) -5/Extension (discovered 3 exits: *Fac x2 / *Cet) -5/Cetus (discovered 2 exits: *Fac / *Arc) -5/Archives (discovered 3 exits: *Fac / *Hub x2) -5/Hub_04(d) (discovered 3 exits: *Fac x3) -4/Factory (discovered 3 exits: Res / Upp / Arm) -4/Waste -4/Factory (discovered 7 exits: *Res x4 / *Upp x2 / Arm) -3/Research (discovered 5 exits: *Res x3 / *Tes x2) -2/Research (discovered 3 exits: Acc x2 / *Qua) -2/Quarantine (discovered 2 exits: *Acc / *Sec) -2/Section 7 -1/Access -1/Command -1/Access_0 To Fleet Rendezvous History --------- Turn | Location | Event 19 | -11/Scrapyard | Discovered new exit (range 16) 113 | -11/Scrapyard | Entered Materials 309 | -10/Materials | Build established: Mutant 315 | -10/Materials | Discovered new exit (range 10) 722 | -10/Materials | Discovered new exit (range 8) 848 | -10/Materials | Discovered new exit (range 6) 1274 | -10/Materials | Discovered new exit (range 16) 2159 | -10/Materials | Build established: Trapper-Mutant 2936 | -10/Materials | Entered Mines 2981 | -10/Mines | Discovered new exit (range 3) 2990 | -10/Mines | Entered Materials 2990 | -9/Materials | Evolved 2 slots: Utility x2 4500 | -9/Materials | Discovered new exit (range 15) 5079 | -9/Materials | Discovered new exit (range 14) 5310 | -9/Materials | Discovered new exit (range 15) 5390 | -9/Materials | First assault squad dispatched 5599 | -9/Materials | Learned location of Storage (-7) 5649 | -9/Materials | Learned 2 Storage zone layouts 5717 | -9/Materials | Identified exit to Materials 5737 | -9/Materials | Learned 2 Storage zone layouts 5748 | -9/Materials | Learned 4 Recycling zone layouts 5768 | -9/Materials | Learned 4 Recycling zone layouts 6004 | -9/Materials | Sterilization system engaged 6004 | -9/Materials | Non-combat units ordered to evacuate 6104 | -9/Materials | Combat units ordered to evacuate 6304 | -9/Materials | Ambient heat levels rising (+10) 6454 | -9/Materials | Ambient heat levels rising (+10) 6505 | -9/Materials | Entered Mines 6505 | -9/Mines | Discovered exit to Materials (range 11) 6805 | -9/Mines | Assembled infested the area 7127 | -9/Mines | Learned Materials terminal intel 7205 | -9/Mines | Discovered new exit (range 5) 7212 | -9/Mines | Entered Exiles 7235 | -9/Exiles | Discovered new exit (range 15) 7260 | -9/Exiles | Met 8R-AWN 7288 | -9/Exiles | Met EX-HEX 7380 | -9/Exiles | Met EX-DEC 7426 | -9/Exiles | Learned location of Zion (-6) 7466 | -9/Exiles | Met EX-BIN 7492 | -9/Exiles | Aligned with FarCom system 7494 | -9/Exiles | Given EX-Vault access code 7562 | -9/Exiles | Opened EX-Vault 7574 | -9/Exiles | Found Longsword +1 7610 | -9/Exiles | Warned to stay clear of 0b10 Research branches 7709 | -9/Exiles | Visited The Gauntlet 8009 | -9/Exiles | Discovered new exit (range 10) 8025 | -9/Exiles | Left Exiles lab with Longsword +1 8025 | -9/Exiles | Entered Mines 8302 | -8/Mines | Discovered exit to Materials (range 3) 8556 | -8/Mines | Discovered exit to Materials (range 6) 9144 | -8/Mines | Entered Materials 9144 | -8/Materials | Evolved 2 slots: Propulsion x2 9145 | -8/Materials | Loaded intel: 11 terminal locations 9869 | -8/Materials | Garrison activated, responded to threat 9967 | -8/Materials | Identified exit to Garrison 10052 | -8/Materials | Destroyed 7 combat bots 10787 | -8/Materials | Discovered new exit (range 7) 10793 | -8/Materials | Build established: Scavenger-Mutant 10873 | -8/Materials | Learned 2 Storage zone layouts 10917 | -8/Materials | Identified exit to Factory 11229 | -8/Materials | Learned location of 3 exits from Factory 11269 | -8/Materials | Learned 2 Storage zone layouts 11298 | -8/Materials | Learned location of 2 exits from Factory 11704 | -8/Materials | Build established: Trapper-Mutant 11790 | -8/Materials | Entered Garrison 11986 | -8/Garrison | Triggered checkpoint 12067 | -8/Garrison | Spotted B-75 Beast 12085 | -8/Garrison | Triggered checkpoint 12154 | -8/Garrison | Discovered exit to Factory (range 8) 12352 | -8/Garrison | Triggered checkpoint 12486 | -8/Garrison | Rescued a captive Derelict 12494 | -8/Garrison | Rescued a captive Derelict 12524 | -8/Garrison | Triggered checkpoint 12777 | -8/Garrison | Destroyed B-75 Beast 12803 | -8/Garrison | Lost 4 parts (2p1n1u) 12964 | -8/Garrison | Triggered checkpoint 12988 | -8/Garrison | Discovered exit to Factory (range 10) 13004 | -8/Garrison | Installed Relay Interface Framework 13067 | -8/Garrison | Garrison Relay disabled 13293 | -8/Garrison | Phase Generator disabled 13428 | -8/Garrison | Garrison Relay disabled 13440 | -8/Garrison | Triggered checkpoint 13474 | -8/Garrison | Build established: Bothacker-Mutant 13796 | -8/Garrison | Garrison Relay disabled 13837 | -8/Garrison | Garrison Relay disabled 13904 | -8/Garrison | Garrison Relay disabled 14424 | -8/Garrison | Garrison Relay disabled 14676 | -8/Garrison | Triggered checkpoint 206200 | -8/Garrison | Entered Factory 206200 | -7/Factory | Accompanied by 1 ally 206200 | -7/Factory | Evolved 2 slots: Propulsion x2 206201 | -7/Factory | Identified exit to Storage 206201 | -7/Factory | Identified exit to Lower Caves 206202 | -7/Factory | Identified exit to Factory 206461 | -7/Factory | Garrison activated, responded to threat 206600 | -7/Factory | First assault squad dispatched 206737 | -7/Factory | Manually triggered Chute Trap 206737 | -7/Factory | Sucked down chute 206737 | -7/Factory | Entered Waste 206739 | -7/Waste | Spotted C-40 Crusher 206740 | -7/Waste | Spotted C-40 Crusher 206746 | -7/Waste | Spotted C-40 Crusher 206752 | -7/Waste | Discovered new exit (range 10) 206752 | -7/Waste | Spotted C-40 Crusher 206782 | -7/Waste | Spotted C-40 Crusher 206782 | -7/Waste | Spotted C-40 Crusher 206821 | -7/Waste | Identified exit to Factory 206861 | -7/Waste | Warlord forces began an assault 206919 | -7/Waste | Allies destroyed C-40 Crusher 206932 | -7/Waste | Allies destroyed C-40 Crusher 206962 | -7/Waste | Allies destroyed C-40 Crusher 207032 | -7/Waste | Lost 19 allies 207145 | -7/Waste | Entered Factory 207316 | -7/Factory | Discovered exit to Storage (range 11) 207545 | -7/Factory | First assault squad dispatched 207603 | -7/Factory | Entered Lower Caves 207838 | -7/Lower Caves | Learned 8 Factory zone layouts 207950 | -7/Lower Caves | Discovered new exit (range 9) 207952 | -7/Lower Caves | Identified exit to Lower Caves 207955 | -7/Lower Caves | Entered another Lower Caves area 208332 | -7/Lower Caves | Discovered new exit (range 13) 208356 | -7/Lower Caves | Identified exit to Data Miner 208376 | -7/Lower Caves | Entered Data Miner 208376 | -7/Data Miner | Discovered new exit (range 6) 208381 | -7/Data Miner | Met Data Miner 208390 | -7/Data Miner | Learned location of Section 7 (-2) 208390 | -7/Data Miner | Acquired the access code to Warlord's prototype stash 208394 | -7/Data Miner | Received God Mode back door access code from Data Miner 208401 | -7/Data Miner | Identified exit to Proximity Caves 208413 | -7/Data Miner | Entered Proximity Caves 208436 | -6/Proximity Caves | Learned Factory emergency access door positions 208508 | -6/Proximity Caves | Spotter reported a threat 208635 | -6/Proximity Caves | Spotter reported a threat 208649 | -6/Proximity Caves | Learned location of Extension (-5) 208667 | -6/Proximity Caves | Discovered exit to Factory (range 9) 208721 | -6/Proximity Caves | Entered Factory 208721 | -6/Factory | Evolved 2 slots: Utility x2 208722 | -6/Factory | Identified exit to Factory 209087 | -6/Factory | Discovered new exit (range 15) 209090 | -6/Factory | Identified exit to Lower Caves 209419 | -6/Factory | Repaired Imp. Flight Unit? 209493 | -6/Factory | Repaired Imp. Cesium-ion Thruster? 210037 | -6/Factory | Build established: Sprinter 210425 | -6/Factory | Manually triggered Chute Trap 210425 | -6/Factory | Sucked down chute 210425 | -6/Factory | Entered Waste 210425 | -6/Waste | The area was eerily silent 210456 | -6/Waste | Discovered new exit (range 10) 210585 | -6/Waste | Identified exit to Factory 210585 | -6/Waste | Entered Factory 210825 | -6/Factory | Discovered exit to Factory (range 14) 210868 | -6/Factory | Fabricated Combat Drone Bay? 210933 | -6/Factory | Build established: Scout 211043 | -6/Factory | Fabricated Cld. VTOL Module? 211175 | -6/Factory | Repaired Exp. Utility Shielding 211180 | -6/Factory | Discovered exit to Lower Caves (range 4) 211269 | -6/Factory | Learned location of 1 exit from Factory 211361 | -6/Factory | Learned 2 Proximity Caves zone layouts 211393 | -6/Factory | Learned location of 2 exits from Archives 211451 | -6/Factory | Learned location of 2 exits from Lower Caves 211512 | -6/Factory | Fabricated Cld. VTOL Module? 211523 | -6/Factory | Build established: Ninja 211545 | -6/Factory | Learned Hub_04(d) garrison access intel 211635 | -6/Factory | First assault squad dispatched 211814 | -6/Factory | Repaired Imp. Light Armor Plating 212403 | -6/Factory | Entered Lower Caves 212404 | -6/Lower Caves | Identified exit to Lower Caves 212420 | -6/Lower Caves | Encountered a Warlord checkpoint 212685 | -6/Lower Caves | Found Alien Artifact 212685 | -6/Lower Caves | Identified Core Expander 212685 | -6/Lower Caves | Installed Core Expander, added new Utility slot 212790 | -6/Lower Caves | Entered another Lower Caves area 212791 | -6/Lower Caves | Identified exit to Zion 213001 | -6/Lower Caves | Encountered a Warlord checkpoint 213268 | -6/Lower Caves | Entered Zion 213277 | -6/Zion | Given A8's code to call for help 213285 | -6/Zion | Discovered new exit (range 14) 213292 | -6/Zion | Found Prototype Launcher 213292 | -6/Zion | Identified Rocket Array 213298 | -6/Zion | Learned location of Warlord (-4) 213321 | -6/Zion | System corruption cleaned by Quarantine Array 213334 | -6/Zion | Identified exit to Proximity Caves 213625 | -6/Zion | Build established: Mutant 213864 | -6/Zion | Entered Proximity Caves 213875 | -5/Proximity Caves | Spotter reported a threat 213875 | -5/Proximity Caves | Spotter reported a threat 213898 | -5/Proximity Caves | Learned location of 2 exits from Factory 214033 | -5/Proximity Caves | Spotted B-75 Beast 214133 | -5/Proximity Caves | Discovered exit to Factory (range 8) 214207 | -5/Proximity Caves | Found DCF Scrap (10 items) 214313 | -5/Proximity Caves | Entered Factory 214313 | -5/Factory | Evolved 2 slots: Utility x2 214314 | -5/Factory | Identified exit to Upper Caves 214314 | -5/Factory | Identified exit to Factory 214982 | -5/Factory | Spotted B-75 Beast 215025 | -5/Factory | Discovered exit to Upper Caves (range 5) 215113 | -5/Factory | Identified exit to Extension 215153 | -5/Factory | Learned 4 Quarantine zone layouts 215184 | -5/Factory | Learned Armory trap positions 215207 | -5/Factory | Learned location of 2 exits from Research 215219 | -5/Factory | Loaded intel: 113 trap records 215242 | -5/Factory | Learned 2 Extension zone layouts 215273 | -5/Factory | Learned Research security intel 215316 | -5/Factory | Learned location of Upper Caves (-5) 215521 | -5/Factory | Fabricated Lgt. Regenerative Plating? 215671 | -5/Factory | Manually triggered Chute Trap 215671 | -5/Factory | Sucked down chute 215671 | -5/Factory | Entered Waste 215679 | -5/Waste | Spotted C-40 Crusher 215679 | -5/Waste | Spotted C-40 Crusher 215681 | -5/Waste | Spotted C-40 Crusher 215681 | -5/Waste | Spotted C-40 Crusher 215686 | -5/Waste | EMP discharged 215687 | -5/Waste | Spotted C-40 Crusher 215695 | -5/Waste | Spotted C-40 Crusher 215696 | -5/Waste | Discovered new exit (range 10) 215697 | -5/Waste | Identified exit to Factory 215698 | -5/Waste | Entered Factory 215863 | -5/Factory | Discovered exit to Extension (range 10) 215872 | -5/Factory | Build established: Hacker-Scout 215889 | -5/Factory | Discovered exit to Factory (range 14) 215986 | -5/Factory | Fabricated Lgt. Regenerative Plating? 216080 | -5/Factory | Learned Testing trap positions 216144 | -5/Factory | Learned Armory garrison access intel 216293 | -5/Factory | Learned Armory security intel 216405 | -5/Factory | Fabricated H-66 Slayer? 216483 | -5/Factory | Entered Extension 216483 | -5/Extension | Accompanied by 5 allies 216751 | -5/Extension | Rescued a captive Derelict 216767 | -5/Extension | Rescued a captive Derelict 216785 | -5/Extension | Rescued a captive Derelict 217077 | -5/Extension | Build established: Commander-Assassin 217107 | -5/Extension | Spotted B-75 Beast 217127 | -5/Extension | Allies destroyed B-75 Beast 217142 | -5/Extension | Spotted B-75 Beast 217166 | -5/Extension | Allies destroyed B-75 Beast 217195 | -5/Extension | Lost 4 allies 217492 | -5/Extension | Rescued a captive Derelict 217509 | -5/Extension | Rescued a captive Derelict 217510 | -5/Extension | Rescued a captive Derelict 217511 | -5/Extension | Rescued a captive Derelict 217517 | -5/Extension | Rescued a captive Derelict 217596 | -5/Extension | Rescued a captive Derelict 217601 | -5/Extension | Rescued a captive Derelict 217615 | -5/Extension | Rescued A7 217627 | -5/Extension | Discovered new exit (range 6) 217674 | -5/Extension | Identified exit to Cetus 218278 | -5/Extension | Entered Cetus 218278 | -5/Cetus | Accompanied by 17 allies (A7) 218283 | -5/Cetus | Acquired a Cetus Manufacturing Module code from A7 218300 | -5/Cetus | Spotted Cetus Guard 218300 | -5/Cetus | Spotted Cetus Guard 218300 | -5/Cetus | Spotted Cetus Guard 218300 | -5/Cetus | Spotted Cetus Guard 218317 | -5/Cetus | Allies destroyed Cetus Guard 218320 | -5/Cetus | Allies destroyed Cetus Guard 218322 | -5/Cetus | Allies destroyed Cetus Guard 218328 | -5/Cetus | Allies destroyed Cetus Guard 218355 | -5/Cetus | Lost 3 allies 218386 | -5/Cetus | Started Cetus Manufacturing Module 218397 | -5/Cetus | Escorted A7 to Cetus Mainframe 218411 | -5/Cetus | Manufactured an Enhanced Grunt 218436 | -5/Cetus | Manufactured an Enhanced Grunt 218461 | -5/Cetus | Manufactured an Enhanced Grunt 218486 | -5/Cetus | Manufactured an Enhanced Grunt 218511 | -5/Cetus | Manufactured an Enhanced Grunt 218523 | -5/Cetus | Discovered new exit (range 19) 218554 | -5/Cetus | Spotted Cetus Guard 218554 | -5/Cetus | Spotted Cetus Guard 218564 | -5/Cetus | Spotted Cetus Guard 218569 | -5/Cetus | Spotted Cetus Guard 218582 | -5/Cetus | Allies destroyed Cetus Guard 218584 | -5/Cetus | Allies destroyed Cetus Guard 218587 | -5/Cetus | Allies destroyed Cetus Guard 218606 | -5/Cetus | Met Revision 17 218684 | -5/Cetus | Identified exit to Archives 218697 | -5/Cetus | Entered Archives 218697 | -5/Archives | Accompanied by 17 allies (A7) 218698 | -5/Archives | Identified exit to Hub_04(d) 218702 | -5/Archives | Received a hacking code to weaken MAIN.C 218753 | -5/Archives | Unable to access archive contents 218771 | -5/Archives | Lost 9 allies 218823 | -5/Archives | Unable to access archive contents 218835 | -5/Archives | Discovered exit to Factory (range 20) 218849 | -5/Archives | Unable to access archive contents 218866 | -5/Archives | Unable to access archive contents 219014 | -5/Archives | Build established: Scavenger-Skirmisher 219774 | -5/Archives | Entered Hub_04(d) 219774 | -5/Hub_04(d) | Accompanied by 7 allies 219775 | -5/Hub_04(d) | Loaded intel: 2 garrison access locations 219779 | -5/Hub_04(d) | Discovered exit to Factory (range 19) 220166 | -5/Hub_04(d) | Discovered exit to Factory (range 16) 220223 | -5/Hub_04(d) | Discovered exit to Factory (range 20) 220364 | -5/Hub_04(d) | Build established: Hacker-Skirmisher 220374 | -5/Hub_04(d) | First assault squad dispatched 220476 | -5/Hub_04(d) | Network Hub disabled 220493 | -5/Hub_04(d) | Spotted Lightning 220494 | -5/Hub_04(d) | Spotted Lightning 220494 | -5/Hub_04(d) | Spotted Lightning 220496 | -5/Hub_04(d) | Spotted Lightning 220498 | -5/Hub_04(d) | Spotted Lightning 220498 | -5/Hub_04(d) | Spotted Lightning 220498 | -5/Hub_04(d) | Spotted Lightning 220512 | -5/Hub_04(d) | System corruption reached 10% 220530 | -5/Hub_04(d) | Spotted Lightning 220531 | -5/Hub_04(d) | Spotted Lightning 220555 | -5/Hub_04(d) | System corruption reached 30% 220556 | -5/Hub_04(d) | Entered Factory 220556 | -4/Factory | Evolved 2 slots: Utility x2 220582 | -4/Factory | Lost 5 parts (1p2n1u1w) 220664 | -4/Factory | Found Prototype Processor 220738 | -4/Factory | Identified Exp. Melee Analysis Suite 220771 | -4/Factory | Found Exp. Melee Analysis Suite 220773 | -4/Factory | Found Exp. Melee Analysis Suite 221122 | -4/Factory | Learned location of 1 exit from Upper Caves 221153 | -4/Factory | Identified exit to Research 221175 | -4/Factory | Learned Quarantine scanalyzer intel 221188 | -4/Factory | Identified exit to Upper Caves 221191 | -4/Factory | Learned location of 1 exit from Research 221192 | -4/Factory | Learned location of 1 exit from Proximity Caves 221196 | -4/Factory | Learned 2 Upper Caves zone layouts 221237 | -4/Factory | Identified exit to Armory 221238 | -4/Factory | Manually triggered Chute Trap 221238 | -4/Factory | Sucked down chute 221238 | -4/Factory | Entered Waste 221238 | -4/Waste | Spotted C-40 Crusher 221250 | -4/Waste | Spotted C-40 Crusher 221250 | -4/Waste | Spotted C-40 Crusher 221251 | -4/Waste | Spotted C-40 Crusher 221252 | -4/Waste | Discovered new exit (range 20) 221253 | -4/Waste | EMP discharged 221253 | -4/Waste | Spotted C-40 Crusher 221255 | -4/Waste | Spotted C-40 Crusher 221266 | -4/Waste | Crushed by Compactor (1 part destroyed, 2 dropped) 221267 | -4/Waste | Identified exit to Factory 221278 | -4/Waste | Entered Factory 221330 | -4/Factory | Discovered exit to Upper Caves (range 16) 221575 | -4/Factory | Build established: Hacker-Scout 221657 | -4/Factory | Spotted B-86 Titan 221739 | -4/Factory | Discovered exit to Research (range 9) 221937 | -4/Factory | Entered Research 221937 | -3/Research | Evolved 2 slots: Propulsion x1, Utility x1 221938 | -3/Research | Identified exit to Testing 221939 | -3/Research | Identified exit to Research 221979 | -3/Research | Central database locked down 222137 | -3/Research | Revision forces began assault on 0b10 222148 | -3/Research | Repaired Cld. Nuclear Pulse Thruster? 222175 | -3/Research | Fabricated Cld. Field Propulsion Drive? 222236 | -3/Research | Learned location of 2 exits from Research 222250 | -3/Research | Met up with Revision 17++ 222256 | -3/Research | Fabricated Cld. Field Propulsion Drive? 222271 | -3/Research | Learned location of Quarantine (-2) 222325 | -3/Research | Learned location of 1 exit from Research 222326 | -3/Research | Loaded intel: 76 trap records 222351 | -3/Research | Learned Access trap positions 222605 | -3/Research | Found Prototype Device 222610 | -3/Research | Identified Exp. Thermal Defense Suite 222637 | -3/Research | Research terminal network offline 222741 | -3/Research | Fabricated Cld. Q-thruster? 222875 | -3/Research | Found Prototype Processor 222879 | -3/Research | Identified Exp. Terrain Scan Processor 223233 | -3/Research | Found Prototype Processor 223265 | -3/Research | Identified Exp. Signal Interpreter 223365 | -3/Research | Entered another Research area 223365 | -2/Research | Evolved 2 slots: Propulsion x1, Utility x1 223366 | -2/Research | Identified exit to Access 223366 | -2/Research | Identified exit to Quarantine 223647 | -2/Research | Entered Quarantine 223648 | -2/Quarantine | Maximum security lockdown engaged 223648 | -2/Quarantine | Identified exit to Section 7 223649 | -2/Quarantine | Loaded intel: 3 scanalyzer locations 223694 | -2/Quarantine | Found Alien Launcher 223711 | -2/Quarantine | Found Alien Artifact 223737 | -2/Quarantine | Discovered exit to Access (range 31) 223755 | -2/Quarantine | Found Alien Slashing Weapon 223763 | -2/Quarantine | Found Alien Artifact 223773 | -2/Quarantine | Found Alien Artifact 223785 | -2/Quarantine | Spotted Fortress 223798 | -2/Quarantine | Entered Section 7 223799 | -2/Section 7 | Maximum security lockdown engaged 223808 | -2/Section 7 | Spotted S7 Guard 223847 | -2/Section 7 | Found Alien Artifact 223850 | -2/Section 7 | Spotted Alpha 7 223864 | -2/Section 7 | Spotted S7 Guard 223887 | -2/Section 7 | Spotted Executioner 223889 | -2/Section 7 | Spotted Executioner 223893 | -2/Section 7 | Spotted B-99 Colossus 223929 | -2/Section 7 | Found Alien Artifact 223929 | -2/Section 7 | Identified LRC Storage 223929 | -2/Section 7 | Installed LRC Storage, increased inventory capacity (+2) 223933 | -2/Section 7 | Found Alien Artifact 223933 | -2/Section 7 | Identified LRC Energy Well 223933 | -2/Section 7 | Installed LRC Energy Well, increased energy storage capacity (+250) 224072 | -2/Section 7 | Spotted B-90 Cyclops 224080 | -2/Section 7 | Discovered exit to Access (range 15) 224083 | -2/Section 7 | Entered Access 224083 | -1/Access | Evolved 2 slots: Weapon x2 224084 | -1/Access | Loaded intel: 68 trap records 224213 | -1/Access | Identified Sigix Broadsword 224333 | -1/Access | First assault squad dispatched 224339 | -1/Access | Discovered new exit (range 8) 224340 | -1/Access | Identified exit to Command 224340 | -1/Access | Entered Command 224388 | -1/Command | Spotted B-99 Colossus 224523 | -1/Command | Spotted M Guard 224523 | -1/Command | Spotted M Guard 224523 | -1/Command | Spotted Combat Programmer 224524 | -1/Command | Identified Sigix Terminator 224527 | -1/Command | Fired Sigix Terminator 224530 | -1/Command | Identified Subatomic Replicator 224530 | -1/Command | Used Subatomic Replicator to create Alien Artifact 224531 | -1/Command | Identified Supercharged TR 224531 | -1/Command | Warped through subspace to slip node 224531 | -1/Command | Discovered new exit (range 6) 224539 | -1/Command | Identified exit to Access_0 224590 | -1/Command | First assault squad dispatched 224671 | -1/Command | Identified Core Reset Matrix 224671 | -1/Command | Identified Microwarp Drive 224671 | -1/Command | Used Core Reset Matrix 224674 | -1/Command | Entered Access_0 224675 | -1/Access_0 | Sensed 4 artifacts in vicinity 224675 | -1/Access_0 | Met Architect 224710 | -1/Access_0 | A6 warped into view 224742 | -1/Access_0 | Subspace Access Node disabled 224786 | -1/Access_0 | A5 warped into view 224790 | -1/Access_0 | Found Hpw. Transdimensional Reconstructor 224800 | -1/Access_0 | Core integrity fell below 50% 224804 | -1/Access_0 | Warped through subspace to slip node 224804 | -1/Access_0 | Discovered new exit (range 8) 224807 | -1/Access_0 | Identified exit to Surface 224807 | *** | Heading to fleet! Last Messages --------------- 24800_ Cld. Nuclear Pulse Thruster destroyed. 24800_ Imp. Fusion Compressor destroyed. 24800_ Adv. Reaction Control System destroyed. 24801_ Cld. Field Propulsion Drive destroyed. 24802_ Lrn. Sensor Array destroyed. 24802_ Cld. Impulse Thruster destroyed. 24802_ Machine Analyzer destroyed. 24802_ Cld. Field Propulsion Drive destroyed. 24802_ A6 follow-up attacks with Unknown Piercing Weapon. 24803_ Penetrated by Quantum Shear. 24803_ Lrn. Terrain Scanner destroyed. 24803_ Penetrated by Quantum Shear. 24804_ Cld. Nuclear Pulse Thruster destroyed. 24805_ Quantum Shear penetrates Wall. 24806_ Warped through subspace, drawn to slip node. 24806_ EXIT=FOUND 24807_ Dropped Lrg. Storage Unit. 24807_ A0_RES: I have more important things to do than play hide-and-seek. Deal with this piece of junk if it returns. 24809_ EXIT=IDENTIFIED: SURFACE Map ----- +----------------------------------------------------+ | | | | | | | | | | | | | | | | | | | | | | | | | | | | | | | | | ?????????????????????????????????????????????????? | | ?????????????????????????????????????????????????? | | ?????????????????????????????????????????????????? | | ?????????????????????????????????????????????????? | | ?????????????????????????????????????????????????? | | ?????????????????????????????????????????????????? | | ????????????????????????###??????????????????????? | | ???????????????????????## ##?????????????????????? | | ???????????????????????# #?????????????????????? | | ???????????????????????# @ #?????????????????????? | | ??????????????????????## #?????????????????????? | | ??????????????????????# #?????????????????????? | | ??????????????????????# ##?????????????????????? | | ??????????????????????## #?????????????????????? | | ??????????????????????# #?????????????????????? | | ??????????????????????# ##?????????????????????? | | ??????????????????????# ! #?????????????????????? | | ??????????????????????# ##?????????????????????? | | ??????????????????????## #??????????????????????? | | ???????????????????????####??????????????????????? | | ?????????????????????????????????????????????????? | | ?????????????????????????????????????????????????? | | ?????????????????????????????????????????????????? | | ?????????????????????????????????????????????????? | | ?????????????????????????????????????????????????? | | ?????????????????????????????????????????????????? | | ?????????????????????????????????????????????????? | | ?????????????????????????????????????????????????? | | ?????????????????????????????????????????????????? | | ?????????????????????????????????????????????????? | | ?????????????????????????????????????????????????? | | ?????????????????????????????????????????????????? | | ?????????????????????????????????????????????????? | | ?????????????????????????????????????????????????? | +----------------------------------------------------+ Best States ------------- Heat Dissipation 56 Coolant Potential 100 Energy Generation 35 Energy Capacity 350 Matter Stores 300 Matter Capacity 300 Sight Range 23 Robot Scan Range 18 Terrain Scan Range 24 Terrain Scan Density 1010 Cloak Strength 2 Armor Coverage 450 Resistance: TH 15 Resistance: EM 25 Core Shielding 30 Utility Shielding 90 Evasion (%) 79 Targeting Accuracy 8 Melee Accuracy 24 Launcher Accuracy 30 Core Analysis 6 Recoil Reduction 5 Energy Filtering 30 Particle Charging 15 Force Boost 20 Offensive Hacking 14 Defensive Hacking 12 Relay Coupler Types 2 Relay Coupler Value 56 Trap Extractor Capacity 4 Item Schematics ----------------- None Robot Schematics ------------------ None Fabricated ------------ Combat Drone Bay | x1 | -6/Factory Cld. VTOL Module | x1 | -6/Factory Cld. VTOL Module | x1 | -6/Factory Lgt. Regenerative Plating | x1 | -5/Factory Lgt. Regenerative Plating | x1 | -5/Factory H-66 Slayer | x2 | -5/Factory Cld. Field Propulsion Drive | x1 | -3/Research Cld. Field Propulsion Drive | x1 | -3/Research Cld. Q-thruster | x1 | -3/Research Alien Tech Used ----------------- Core Expander LRC Storage LRC Energy Well Sigix Broadsword Sigix Terminator Subatomic Replicator Supercharged TR Core Reset Matrix High-powered Transdimensional Reconstructor Achievements -------------- My Command Is Your Wish Challenges ------------ None Game ------ Seed ClaymoresImpulseDrive Manual? 0 Play Time 18:01:54 Cumulative 158.6 hours Start 2024.09.15 @ 23:36:12 End 2024.09.17 @ 19:49:42 Sessions 9 Manual Loads 0 Difficulty Rogue Special Mode None Game No. 27 Rogue 27 Adventurer 0 Explorer 0 Win Type 2 Total 6 Types 2/0/4/0/0/0/0/0/0 Lore% 34 Gallery% 59 Achievement% 57 Wizard Run 0 Options --------- Layout 0 ASCII 0 Keyboard 1 Movement Arrows Keybinds 0 Fullscreen 1 Font 12/Cog Map View 83x54 Zoom Use 0% Tactical HUD 1 Map Filters NONE Filters NONE Steam 0 RUN: 3b0a3191-ed30-4169-ad87-e7d317c4c1db